{"text_format":"1","workbook":"xlsx","n_sheets":47,"sheets":["Setup","Forside","Forsidex","Info","Indtast resultat","Holdresultat","Individuel","Top3","Skydetid","Finale","01","02","03","04","05","06","07","08","09","10","11","12","13","14","15","16","17","18","19","20","21","22","23","24","25","26","27","28","29","30","31","32","33","34","35","old2new","test"],"not_rendered":{"charts":0,"images":7,"macros":1,"external_links":0,"defined_names":41,"comments":0,"pivot_tables":0},"unopened":[],"bounds":{"document_bytes":16777216,"sheet_cells":100000,"rows_first":2000,"rows_last":500,"rows_between":2000,"halvings":0,"cell_chars":16384,"cell_head_chars":4096},"cells_cut":0,"cells_raw":0,"read":"whole","date_system":"1900"}

{"sheet":"Setup","index":0,"n_rows":6,"n_cols":2,"rows_kept":6,"cut":false,"hidden":false,"merged":[]}
["Indtastet data herunder indsættes automatisk i"]
["diverse overskrifter på andre ark ;o)"]
[]
[null,"Indtast"]
["Årstal",2021]
["Landsdelsnavn","DGI Sønderjylland"]

{"sheet":"Forside","index":1,"n_rows":21,"n_cols":1,"rows_kept":21,"cut":false,"hidden":false,"merged":[[20,0,20,5],[4,0,4,5],[5,0,5,5],[6,0,6,5],[7,0,7,5],[18,0,18,5],[19,0,19,5]]}
[]
[]
[]
[]
["RESULTATLISTE"]
[{"$f":"\"SKOLE DM I SKYDNING \" &Setup!B5","v":"SKOLE DM I SKYDNING 2021"}]
["LANDSDELSFINALE"]
[{"$f":"Setup!B6","v":"DGI Sønderjylland"}]
[]
[]
[]
[]
[]
[]
[]
[]
[]
[]
["Se også:"]
["www.dgi.dk/skoledmskydning"]
["www.skoleidraet.dk"]

{"sheet":"Forsidex","index":2,"n_rows":1,"n_cols":1,"rows_kept":1,"cut":false,"hidden":true,"merged":[]}
["Under udvikling... ;o)"]

{"sheet":"Info","index":3,"n_rows":11,"n_cols":2,"rows_kept":11,"cut":false,"hidden":false,"merged":[]}
[]
[]
[]
[]
[]
[null,"Velkommen til"]
[null,{"$f":"\"Skole DM i Skydning \" &Setup!B5","v":"Skole DM i Skydning 2021"}]
[null,"dgi.dk/skoledmskydning"]
[null,"skoleidraet.dk"]
[]
[null,"Kom godt hjem!"]

{"sheet":"Indtast resultat","index":4,"n_rows":205,"n_cols":5,"rows_kept":205,"cut":false,"hidden":false,"merged":[]}
["Skole DM i Skydning",null,null,"Startnr.",135001]
[{"$f":"\"Skole/hold \" & (ROW()-2)/6+1","v":"Skole/hold 1"},"Navn","Point","x","Skivenr"]
["Svenstrup Friskole 5.-1","Luca Schmidt",191,4,{"$f":"IF(E1<>\"\",E1,\"\")","v":135001}]
["Svenstrup Skytteforening","Albert Jørgensen",186,1,{"$f":"IF(E3<>\"\",E3+10,\"\")","v":135011}]
[{"$f":"Setup!B6","v":"DGI Sønderjylland"},"Jacob Alberts",186,0,{"$f":"IF(E4<>\"\",E4+10,\"\")","v":135021}]
["Jonna Hansen","Frederikke Clausen",180,2,{"$f":"IF(E5<>\"\",E5+10,\"\")","v":135031}]
["jonna.sjellerup@bbsyd.dk","Sum",{"$f":"SUM(C3:C6)","v":743},{"$f":"SUM(D3:D6)","v":7}]
[{"$f":"\"Skole/hold \" & (ROW()-2)/6+1","v":"Skole/hold 2"},"Navn","Point","x","Skivenr"]
["Broager Skole 5C-1","Ida",180,0,{"$f":"IF(E6<>\"\",E6+10,\"\")","v":135041}]
["Broagerlands Skytteforening","Mads",173,1,{"$f":"IF(E9<>\"\",E9+10,\"\")","v":135051}]
[{"$f":"$A$5","v":"DGI Sønderjylland"},"Freja",189,2,{"$f":"IF(E10<>\"\",E10+10,\"\")","v":135061}]
["Lykke Hattesen","William",177,0,{"$f":"IF(E11<>\"\",E11+10,\"\")","v":135071}]
["jyttehattesen@gmail.com","Sum",{"$f":"SUM(C9:C12)","v":719},{"$f":"SUM(D9:D12)","v":3}]
[{"$f":"\"Skole/hold \" & (ROW()-2)/6+1","v":"Skole/hold 3"},"Navn","Point","x","Skivenr"]
["Nordals Skolen 5B-1","Isabella Juhler",0,0,{"$f":"IF(E12<>\"\",E12+10,\"\")","v":135081}]
["Nordals Skyttekreds","Mikkel Kjær",0,0,{"$f":"IF(E15<>\"\",E15+10,\"\")","v":135091}]
[{"$f":"$A$5","v":"DGI Sønderjylland"},"Simon Eriksen",0,0,{"$f":"IF(E16<>\"\",E16+10,\"\")","v":135101}]
["Marie Sørensen","Isabella Kunstmann",0,0,{"$f":"IF(E17<>\"\",E17+10,\"\")","v":135111}]
["mariekort@mail.dk","Sum",{"$f":"SUM(C15:C18)","v":0},{"$f":"SUM(D15:D18)","v":0}]
[{"$f":"\"Skole/hold \" & (ROW()-2)/6+1","v":"Skole/hold 4"},"Navn","Point","x","Skivenr"]
["Augustenborg Skole 5A-2","Rosa Margrethe Vohs",175,1,{"$f":"IF(E18<>\"\",E18+10,\"\")","v":135121}]
["Midtals Skytteforening","Mathias Franke Andersen",188,0,{"$f":"IF(E21<>\"\",E21+10,\"\")","v":135131}]
[{"$f":"$A$5","v":"DGI Sønderjylland"},"Ida Karstensen Nielsen",176,1,{"$f":"IF(E22<>\"\",E22+10,\"\")","v":135141}]
["Keld Eiffert","Alexander Krogh",156,0,{"$f":"IF(E23<>\"\",E23+10,\"\")","v":135151}]
["keld.eiffert@bbsyd.dk","Sum",{"$f":"SUM(C21:C24)","v":695},{"$f":"SUM(D21:D24)","v":2}]
[{"$f":"\"Skole/hold \" & (ROW()-2)/6+1","v":"Skole/hold 5"},"Navn","Point","x","Skivenr"]
["Broager Skole 5B-1","Line Sofie Teichert Madsen",192,4,{"$f":"IF(E24<>\"\",E24+10,\"\")","v":135161}]
["Broagerlands Skytteforening","Elias Helding Gandrup",186,0,{"$f":"IF(E27<>\"\",E27+10,\"\")","v":135171}]
[{"$f":"$A$5","v":"DGI Sønderjylland"},"Shasmina Kalika",189,1,{"$f":"IF(E28<>\"\",E28+10,\"\")","v":135181}]
["Lykke Hattesen","Madicken Zahn Paulsen",189,3,{"$f":"IF(E29<>\"\",E29+10,\"\")","v":135191}]
["lykkehattesen@gmail.com","Sum",{"$f":"SUM(C27:C30)","v":756},{"$f":"SUM(D27:D30)","v":8}]
[{"$f":"\"Skole/hold \" & (ROW()-2)/6+1","v":"Skole/hold 6"},"Navn","Point","x","Skivenr"]
["Oksbøl Friskole 5K-1","Sofie Hansen",186,0,{"$f":"IF(E30<>\"\",E30+10,\"\")","v":135201}]
["Nordals Skyttekreds","Lukas Schink Hansen",181,2,{"$f":"IF(E33<>\"\",E33+10,\"\")","v":135211}]
[{"$f":"$A$5","v":"DGI Sønderjylland"},"Peter Hvid",186,2,{"$f":"IF(E34<>\"\",E34+10,\"\")","v":135221}]
["Marie Sørensen","Klara Poulsen Kristensen",183,1,{"$f":"IF(E35<>\"\",E35+10,\"\")","v":135231}]
["mariekort@mail.dk","Sum",{"$f":"SUM(C33:C36)","v":736},{"$f":"SUM(D33:D36)","v":5}]
[{"$f":"\"Skole/hold \" & (ROW()-2)/6+1","v":"Skole/hold 7"},"Navn","Point","x","Skivenr"]
["Dybbøl Skolen 5B-1","Luna Kejser Jensen",189,2,{"$f":"IF(E36<>\"\",E36+10,\"\")","v":135241}]
["Sønderborg Skyttekreds","Kaisa Spilling",184,1,{"$f":"IF(E39<>\"\",E39+10,\"\")","v":135251}]
[{"$f":"$A$5","v":"DGI Sønderjylland"},"Oliver Lundbjeg Bidstrup",184,2,{"$f":"IF(E40<>\"\",E40+10,\"\")","v":135261}]
["Jimmy Illner","Victoria Møller Böhlers",190,3,{"$f":"IF(E41<>\"\",E41+10,\"\")","v":135271}]
["ji@skyttekreds.dk","Sum",{"$f":"SUM(C39:C42)","v":747},{"$f":"SUM(D39:D42)","v":8}]
[{"$f":"\"Skole/hold \" & (ROW()-2)/6+1","v":"Skole/hold 8"},"Navn","Point","x","Skivenr"]
["Dybbøl Skolen 5A-1","Silke Uldall Nielsen",0,0,{"$f":"IF(E42<>\"\",E42+10,\"\")","v":135281}]
["Sønderborg Skyttekreds","Alberte Sofie Benkjer",0,0,{"$f":"IF(E45<>\"\",E45+10,\"\")","v":135291}]
[{"$f":"$A$5","v":"DGI Sønderjylland"},"Julie Sørensen",0,0,{"$f":"IF(E46<>\"\",E46+10,\"\")","v":135301}]
["Jimmy Illner","Hjalte Asmussen",0,0,{"$f":"IF(E47<>\"\",E47+10,\"\")","v":135311}]
["ji@skyttekreds.dk","Sum",{"$f":"SUM(C45:C48)","v":0},{"$f":"SUM(D45:D48)","v":0}]
[{"$f":"\"Skole/hold \" & (ROW()-2)/6+1","v":"Skole/hold 9"},"Navn","Point","x","Skivenr"]
["Friskolen Østerlund 5-1","Madina M. Werner",0,0,{"$f":"IF(E48<>\"\",E48+10,\"\")","v":135321}]
["Midtals Skytteforening","Aksel S. Jessen",0,0,{"$f":"IF(E51<>\"\",E51+10,\"\")","v":135331}]
[{"$f":"$A$5","v":"DGI Sønderjylland"},"Dicte W. Jørgensen",0,0,{"$f":"IF(E52<>\"\",E52+10,\"\")","v":135341}]
["Marie Sørensen","Ida M. Lorenzen",0,0,{"$f":"IF(E53<>\"\",E53+10,\"\")","v":135351}]
["mariekort@mail.dk","Sum",{"$f":"SUM(C51:C54)","v":0},{"$f":"SUM(D51:D54)","v":0}]
[{"$f":"\"Skole/hold \" & (ROW()-2)/6+1","v":"Skole/hold 10"},"Navn","Point","x","Skivenr"]
["Humlehøj Skolen 5A-1","Josefine Frisk Christensen",198,4,{"$f":"IF(E54<>\"\",E54+10,\"\")","v":135361}]
["Sønderborg Skyttekreds","Mathilde Uhrskov Lundgreen",184,2,{"$f":"IF(E57<>\"\",E57+10,\"\")","v":135371}]
[{"$f":"$A$5","v":"DGI Sønderjylland"},"Camille Fick Johannsen",187,2,{"$f":"IF(E58<>\"\",E58+10,\"\")","v":135381}]
["Jimmy Illner","Silas Loose Tinnesen",186,2,{"$f":"IF(E59<>\"\",E59+10,\"\")","v":135391}]
["ji@skyttekreds.dk","Sum",{"$f":"SUM(C57:C60)","v":755},{"$f":"SUM(D57:D60)","v":10}]
[{"$f":"\"Skole/hold \" & (ROW()-2)/6+1","v":"Skole/hold 11"},"Navn","Point","x","Skivenr"]
["Ahlmann Skolen 5A-1","Johanna Bjerrum",187,2,{"$f":"IF(E60<>\"\",E60+10,\"\")","v":135401}]
["Sønderborg Skyttekreds","Mimi Lyngkilde Clausen",185,4,{"$f":"IF(E63<>\"\",E63+10,\"\")","v":135411}]
[{"$f":"$A$5","v":"DGI Sønderjylland"},"Viola Seeberg Haurum",181,1,{"$f":"IF(E64<>\"\",E64+10,\"\")","v":135421}]
["Jimmy Illner","Mille Jozefowicz",182,1,{"$f":"IF(E65<>\"\",E65+10,\"\")","v":135431}]
["ji@skyttekreds.dk","Sum",{"$f":"SUM(C63:C66)","v":735},{"$f":"SUM(D63:D66)","v":8}]
[{"$f":"\"Skole/hold \" & (ROW()-2)/6+1","v":"Skole/hold 12"},"Navn","Point","x","Skivenr"]
["Augustenborg Skole 5B-2","Loke Uduak Skov Christensen",190,6,{"$f":"IF(E66<>\"\",E66+10,\"\")","v":135441}]
["Midtals Skytteforening","Maja Vonsild Jensen",188,4,{"$f":"IF(E69<>\"\",E69+10,\"\")","v":135451}]
[{"$f":"$A$5","v":"DGI Sønderjylland"},"Nicolai Hadberg",187,0,{"$f":"IF(E70<>\"\",E70+10,\"\")","v":135461}]
["Keld Eiffert","Louiza Kaluzny-Jarrov",186,1,{"$f":"IF(E71<>\"\",E71+10,\"\")","v":135471}]
["keld.eiffert@bbsyd.dk","Sum",{"$f":"SUM(C69:C72)","v":751},{"$f":"SUM(D69:D72)","v":11}]
[{"$f":"\"Skole/hold \" & (ROW()-2)/6+1","v":"Skole/hold 13"},"Navn","Point","x","Skivenr"]
["Gråsten Skole 5B-1","Mille Laus Vollertsen",187,4,{"$f":"IF(E72<>\"\",E72+10,\"\")","v":135481}]
["Gråsten Skytteforening","Patrick Good Hollænder",183,1,{"$f":"IF(E75<>\"\",E75+10,\"\")","v":135491}]
[{"$f":"$A$5","v":"DGI Sønderjylland"},"Nanna Brogaard Roth",191,1,{"$f":"IF(E76<>\"\",E76+10,\"\")","v":135501}]
["Iver Clausen","Lars Heissel",187,2,{"$f":"IF(E77<>\"\",E77+10,\"\")","v":135511}]
["iver.mona@bbsyd.dk","Sum",{"$f":"SUM(C75:C78)","v":748},{"$f":"SUM(D75:D78)","v":8}]
[{"$f":"\"Skole/hold \" & (ROW()-2)/6+1","v":"Skole/hold 14"},"Navn","Point","x","Skivenr"]
["Dybbøl Skolen 5D-1","Liv Gregersen Elmer",181,1,{"$f":"IF(E78<>\"\",E78+10,\"\")","v":135521}]
["Sønderborg Skyttekreds","Jones Hansen",189,1,{"$f":"IF(E81<>\"\",E81+10,\"\")","v":135531}]
[{"$f":"$A$5","v":"DGI Sønderjylland"},"Frida Kou Jensen",186,2,{"$f":"IF(E82<>\"\",E82+10,\"\")","v":135541}]
["Jimmy Illner","Victoria Benedikte Grum Kjærgaard",189,3,{"$f":"IF(E83<>\"\",E83+10,\"\")","v":135551}]
["ji@skyttekreds.dk","Sum",{"$f":"SUM(C81:C84)","v":745},{"$f":"SUM(D81:D84)","v":7}]
[{"$f":"\"Skole/hold \" & (ROW()-2)/6+1","v":"Skole/hold 15"},"Navn","Point","x","Skivenr"]
["Oksbøl Friskole 5M-1","Celine Jungquist Christensen",186,0,{"$f":"IF(E84<>\"\",E84+10,\"\")","v":135561}]
["Nordals Skyttekreds","Laura Kjærgaard",180,1,{"$f":"IF(E87<>\"\",E87+10,\"\")","v":135571}]
[{"$f":"$A$5","v":"DGI Sønderjylland"},"Sascha Møller Abrahamsen",187,0,{"$f":"IF(E88<>\"\",E88+10,\"\")","v":135581}]
["Marie Sørensen","Layla Clausen",192,2,{"$f":"IF(E89<>\"\",E89+10,\"\")","v":135591}]
["mariekort@mail.dk","Sum",{"$f":"SUM(C87:C90)","v":745},{"$f":"SUM(D87:D90)","v":3}]
[{"$f":"\"Skole/hold \" & (ROW()-2)/6+1","v":"Skole/hold 16"},"Navn","Point","x","Skivenr"]
["Augustenborg Skole 5A-1","Amanda Angelica Hansen",191,2,{"$f":"IF(E90<>\"\",E90+10,\"\")","v":135601}]
["Midtals Skytteforening","Lea Raabe Jæger",186,1,{"$f":"IF(E93<>\"\",E93+10,\"\")","v":135611}]
[{"$f":"$A$5","v":"DGI Sønderjylland"},"Sophia Rahr Semmelmann",194,7,{"$f":"IF(E94<>\"\",E94+10,\"\")","v":135621}]
["Keld Eiffert","Sofie Kinastovski Wolff",191,4,{"$f":"IF(E95<>\"\",E95+10,\"\")","v":135631}]
["keld.eiffert@bbsyd.dk","Sum",{"$f":"SUM(C93:C96)","v":762},{"$f":"SUM(D93:D96)","v":14}]
[{"$f":"\"Skole/hold \" & (ROW()-2)/6+1","v":"Skole/hold 17"},"Navn","Point","x","Skivenr"]
["Skærbæk Realskole 5A-1","Lasse Sørensen",183,0,{"$f":"IF(E96<>\"\",E96+10,\"\")","v":135641}]
["Sparta","Casper Nissen",191,3,{"$f":"IF(E99<>\"\",E99+10,\"\")","v":135651}]
[{"$f":"$A$5","v":"DGI Sønderjylland"},"Morten Vejrup",187,1,{"$f":"IF(E100<>\"\",E100+10,\"\")","v":135661}]
["Niels Schmidt","Silke Petersen",195,3,{"$f":"IF(E101<>\"\",E101+10,\"\")","v":135671}]
["ns@ecco.com","Sum",{"$f":"SUM(C99:C102)","v":756},{"$f":"SUM(D99:D102)","v":7}]
[{"$f":"\"Skole/hold \" & (ROW()-2)/6+1","v":"Skole/hold 18"},"Navn","Point","x","Skivenr"]
["Dybbøl Skolen 5C-1","Kathrine Holm Østergaard",186,3,{"$f":"IF(E102<>\"\",E102+10,\"\")","v":135681}]
["Sønderborg Skyttekreds","Said Mohammed Mosleh",180,1,{"$f":"IF(E105<>\"\",E105+10,\"\")","v":135691}]
[{"$f":"$A$5","v":"DGI Sønderjylland"},"Eliza Anna Andreasen",189,1,{"$f":"IF(E106<>\"\",E106+10,\"\")","v":135701}]
["Jimmy Illner","Sofia Lykkeø Enggaard",185,2,{"$f":"IF(E107<>\"\",E107+10,\"\")","v":135711}]
["ji@skyttekreds.dk","Sum",{"$f":"SUM(C105:C108)","v":740},{"$f":"SUM(D105:D108)","v":7}]
[{"$f":"\"Skole/hold \" & (ROW()-2)/6+1","v":"Skole/hold 19"},"Navn","Point","x","Skivenr"]
["Augustenborg Skole 5B-1","Emma Bramvel Blaudzun",185,3,135841]
["Midtals Skytteforening","Lærke Bak",187,2,{"$f":"IF(E111<>\"\",E111+10,\"\")","v":135851}]
[{"$f":"$A$5","v":"DGI Sønderjylland"},"Mathilde Plehn",191,4,{"$f":"IF(E112<>\"\",E112+10,\"\")","v":135861}]
["Keld Eiffert","Silje Lindberg Lorenzen",190,4,{"$f":"IF(E113<>\"\",E113+10,\"\")","v":135871}]
["keld.eiffert@bbsyd.dk","Sum",{"$f":"SUM(C111:C114)","v":753},{"$f":"SUM(D111:D114)","v":13}]
[{"$f":"\"Skole/hold \" & (ROW()-2)/6+1","v":"Skole/hold 20"},"Navn","Point","x","Skivenr"]
["Digeskolen 5H-1","Ida Marie Petersen",183,1,{"$f":"IF(E114<>\"\",E114+10,\"\")","v":135881}]
["Sparta","Line Skovgaard",190,2,{"$f":"IF(E117<>\"\",E117+10,\"\")","v":135891}]
[{"$f":"$A$5","v":"DGI Sønderjylland"},"Bertram Teglskov",188,3,{"$f":"IF(E118<>\"\",E118+10,\"\")","v":135901}]
["Niels Schmidt","Rasmus Andresen",191,1,{"$f":"IF(E119<>\"\",E119+10,\"\")","v":135911}]
["ns@ecco.com","Sum",{"$f":"SUM(C117:C120)","v":752},{"$f":"SUM(D117:D120)","v":7}]
[{"$f":"\"Skole/hold \" & (ROW()-2)/6+1","v":"Skole/hold 21"},"Navn","Point","x","Skivenr"]
["Gråsten Skole 5A-1","Marie Pedersen",194,5,{"$f":"IF(E120<>\"\",E120+10,\"\")","v":135921}]
["Gråsten Skytteforening","Philip Bossen",188,3,{"$f":"IF(E123<>\"\",E123+10,\"\")","v":135931}]
[{"$f":"$A$5","v":"DGI Sønderjylland"},"Iben Nissen",187,2,{"$f":"IF(E124<>\"\",E124+10,\"\")","v":135941}]
["Iver Clausen","Nikola Malocha",180,4,{"$f":"IF(E125<>\"\",E125+10,\"\")","v":135951}]
["iver.mona@bbsyd.dk","Sum",{"$f":"SUM(C123:C126)","v":749},{"$f":"SUM(D123:D126)","v":14}]
[{"$f":"\"Skole/hold \" & (ROW()-2)/6+1","v":"Skole/hold 22"},"Navn","Point","x","Skivenr"]
["Skærbæk Distriksskole 5A-1","Oskar Jørgensen",182,2,{"$f":"IF(E126<>\"\",E126+10,\"\")","v":135961}]
["Sparta","Mads Olesen",188,5,{"$f":"IF(E129<>\"\",E129+10,\"\")","v":135971}]
[{"$f":"$A$5","v":"DGI Sønderjylland"},"Emil Thomasen",187,2,{"$f":"IF(E130<>\"\",E130+10,\"\")","v":135981}]
["Niels Schmidt","Maja Petersen",196,5,{"$f":"IF(E131<>\"\",E131+10,\"\")","v":135991}]
["ns@ecco.com","Sum",{"$f":"SUM(C129:C132)","v":753},{"$f":"SUM(D129:D132)","v":14}]
[{"$f":"\"Skole/hold \" & (ROW()-2)/6+1","v":"Skole/hold 23"},"Navn","Point","x","Skivenr"]
["Skole - Klasse - Hold","Elev 1",0,0,{"$f":"IF(E132<>\"\",E132+10,\"\")","v":136001}]
["Forening","Elev 2",0,0,{"$f":"IF(E135<>\"\",E135+10,\"\")","v":136011}]
[{"$f":"$A$5","v":"DGI Sønderjylland"},"Elev 3",0,0,{"$f":"IF(E136<>\"\",E136+10,\"\")","v":136021}]
["Kontaktnavn","Elev 4",0,0,{"$f":"IF(E137<>\"\",E137+10,\"\")","v":136031}]
["Kontaktmail","Sum",{"$f":"SUM(C135:C138)","v":0},{"$f":"SUM(D135:D138)","v":0}]
[{"$f":"\"Skole/hold \" & (ROW()-2)/6+1","v":"Skole/hold 24"},"Navn","Point","x","Skivenr"]
["Skole - Klasse - Hold","Elev 1",0,0,{"$f":"IF(E138<>\"\",E138+10,\"\")","v":136041}]
["Forening","Elev 2",0,0,{"$f":"IF(E141<>\"\",E141+10,\"\")","v":136051}]
[{"$f":"$A$5","v":"DGI Sønderjylland"},"Elev 3",0,0,{"$f":"IF(E142<>\"\",E142+10,\"\")","v":136061}]
["Kontaktnavn","Elev 4",0,0,{"$f":"IF(E143<>\"\",E143+10,\"\")","v":136071}]
["Kontaktmail","Sum",{"$f":"SUM(C141:C144)","v":0},{"$f":"SUM(D141:D144)","v":0}]
[{"$f":"\"Skole/hold \" & (ROW()-2)/6+1","v":"Skole/hold 25"},"Navn","Point","x","Skivenr"]
["Skole - Klasse - Hold","Elev 1",0,0,{"$f":"IF(E144<>\"\",E144+10,\"\")","v":136081}]
["Forening","Elev 2",0,0,{"$f":"IF(E147<>\"\",E147+10,\"\")","v":136091}]
[{"$f":"$A$5","v":"DGI Sønderjylland"},"Elev 3",0,0,{"$f":"IF(E148<>\"\",E148+10,\"\")","v":136101}]
["Kontaktnavn","Elev 4",0,0,{"$f":"IF(E149<>\"\",E149+10,\"\")","v":136111}]
["Kontaktmail","Sum",{"$f":"SUM(C147:C150)","v":0},{"$f":"SUM(D147:D150)","v":0}]
[{"$f":"\"Skole/hold \" & (ROW()-2)/6+1","v":"Skole/hold 26"},"Navn","Point","x","Skivenr"]
["Skole - Klasse - Hold","Elev 1",0,0,{"$f":"IF(E150<>\"\",E150+10,\"\")","v":136121}]
["Forening","Elev 2",0,0,{"$f":"IF(E153<>\"\",E153+10,\"\")","v":136131}]
[{"$f":"$A$5","v":"DGI Sønderjylland"},"Elev 3",0,0,{"$f":"IF(E154<>\"\",E154+10,\"\")","v":136141}]
["Kontaktnavn","Elev 4",0,0,{"$f":"IF(E155<>\"\",E155+10,\"\")","v":136151}]
["Kontaktmail","Sum",{"$f":"SUM(C153:C156)","v":0},{"$f":"SUM(D153:D156)","v":0}]
[{"$f":"\"Skole/hold \" & (ROW()-2)/6+1","v":"Skole/hold 27"},"Navn","Point","x","Skivenr"]
["Skole - Klasse - Hold","Elev 1",0,0,{"$f":"IF(E156<>\"\",E156+10,\"\")","v":136161}]
["Forening","Elev 2",0,0,{"$f":"IF(E159<>\"\",E159+10,\"\")","v":136171}]
[{"$f":"$A$5","v":"DGI Sønderjylland"},"Elev 3",0,0,{"$f":"IF(E160<>\"\",E160+10,\"\")","v":136181}]
["Kontaktnavn","Elev 4",0,0,{"$f":"IF(E161<>\"\",E161+10,\"\")","v":136191}]
["Kontaktmail","Sum",{"$f":"SUM(C159:C162)","v":0},{"$f":"SUM(D159:D162)","v":0}]
[{"$f":"\"Skole/hold \" & (ROW()-2)/6+1","v":"Skole/hold 28"},"Navn","Point","x","Skivenr"]
["Skole - Klasse - Hold","Elev 1",0,0,{"$f":"IF(E162<>\"\",E162+10,\"\")","v":136201}]
["Forening","Elev 2",0,0,{"$f":"IF(E165<>\"\",E165+10,\"\")","v":136211}]
[{"$f":"$A$5","v":"DGI Sønderjylland"},"Elev 3",0,0,{"$f":"IF(E166<>\"\",E166+10,\"\")","v":136221}]
["Kontaktnavn","Elev 4",0,0,{"$f":"IF(E167<>\"\",E167+10,\"\")","v":136231}]
["Kontaktmail","Sum",{"$f":"SUM(C165:C168)","v":0},{"$f":"SUM(D165:D168)","v":0}]
[{"$f":"\"Skole/hold \" & (ROW()-2)/6+1","v":"Skole/hold 29"},"Navn","Point","x","Skivenr"]
["Skole - Klasse - Hold","Elev 1",0,0,{"$f":"IF(E168<>\"\",E168+10,\"\")","v":136241}]
["Forening","Elev 2",0,0,{"$f":"IF(E171<>\"\",E171+10,\"\")","v":136251}]
[{"$f":"$A$5","v":"DGI Sønderjylland"},"Elev 3",0,0,{"$f":"IF(E172<>\"\",E172+10,\"\")","v":136261}]
["Kontaktnavn","Elev 4",0,0,{"$f":"IF(E173<>\"\",E173+10,\"\")","v":136271}]
["Kontaktmail","Sum",{"$f":"SUM(C171:C174)","v":0},{"$f":"SUM(D171:D174)","v":0}]
[{"$f":"\"Skole/hold \" & (ROW()-2)/6+1","v":"Skole/hold 30"},"Navn","Point","x","Skivenr"]
["Skole - Klasse - Hold","Elev 1",0,0,{"$f":"IF(E174<>\"\",E174+10,\"\")","v":136281}]
["Forening","Elev 2",0,0,{"$f":"IF(E177<>\"\",E177+10,\"\")","v":136291}]
[{"$f":"$A$5","v":"DGI Sønderjylland"},"Elev 3",0,0,{"$f":"IF(E178<>\"\",E178+10,\"\")","v":136301}]
["Kontaktnavn","Elev 4",0,0,{"$f":"IF(E179<>\"\",E179+10,\"\")","v":136311}]
["Kontaktmail","Sum",{"$f":"SUM(C177:C180)","v":0},{"$f":"SUM(D177:D180)","v":0}]
[{"$f":"\"Skole/hold \" & (ROW()-2)/6+1","v":"Skole/hold 31"},"Navn","Point","x","Skivenr"]
["Skole - Klasse - Hold","Elev 1",0,0,{"$f":"IF(E180<>\"\",E180+10,\"\")","v":136321}]
["Forening","Elev 2",0,0,{"$f":"IF(E183<>\"\",E183+10,\"\")","v":136331}]
[{"$f":"$A$5","v":"DGI Sønderjylland"},"Elev 3",0,0,{"$f":"IF(E184<>\"\",E184+10,\"\")","v":136341}]
["Kontaktnavn","Elev 4",0,0,{"$f":"IF(E185<>\"\",E185+10,\"\")","v":136351}]
["Kontaktmail","Sum",{"$f":"SUM(C183:C186)","v":0},{"$f":"SUM(D183:D186)","v":0}]
[{"$f":"\"Skole/hold \" & (ROW()-2)/6+1","v":"Skole/hold 32"},"Navn","Point","x","Skivenr"]
["Skole - Klasse - Hold","Elev 1",0,0,{"$f":"IF(E186<>\"\",E186+10,\"\")","v":136361}]
["Forening","Elev 2",0,0,{"$f":"IF(E189<>\"\",E189+10,\"\")","v":136371}]
[{"$f":"$A$5","v":"DGI Sønderjylland"},"Elev 3",0,0,{"$f":"IF(E190<>\"\",E190+10,\"\")","v":136381}]
["Kontaktnavn","Elev 4",0,0,{"$f":"IF(E191<>\"\",E191+10,\"\")","v":136391}]
["Kontaktmail","Sum",{"$f":"SUM(C189:C192)","v":0},{"$f":"SUM(D189:D192)","v":0}]
[{"$f":"\"Skole/hold \" & (ROW()-2)/6+1","v":"Skole/hold 33"},"Navn","Point","x","Skivenr"]
["Skole - Klasse - Hold","Elev 1",0,0,{"$f":"IF(E192<>\"\",E192+10,\"\")","v":136401}]
["Forening","Elev 2",0,0,{"$f":"IF(E195<>\"\",E195+10,\"\")","v":136411}]
[{"$f":"$A$5","v":"DGI Sønderjylland"},"Elev 3",0,0,{"$f":"IF(E196<>\"\",E196+10,\"\")","v":136421}]
["Kontaktnavn","Elev 4",0,0,{"$f":"IF(E197<>\"\",E197+10,\"\")","v":136431}]
["Kontaktmail","Sum",{"$f":"SUM(C195:C198)","v":0},{"$f":"SUM(D195:D198)","v":0}]
[{"$f":"\"Skole/hold \" & (ROW()-2)/6+1","v":"Skole/hold 34"},"Navn","Point","x","Skivenr"]
["Skole - Klasse - Hold","Elev 1",0,0,{"$f":"IF(E198<>\"\",E198+10,\"\")","v":136441}]
["Forening","Elev 2",0,0,{"$f":"IF(E201<>\"\",E201+10,\"\")","v":136451}]
[{"$f":"$A$5","v":"DGI Sønderjylland"},"Elev 3",0,0,{"$f":"IF(E202<>\"\",E202+10,\"\")","v":136461}]
["Kontaktnavn","Elev 4",0,0,{"$f":"IF(E203<>\"\",E203+10,\"\")","v":136471}]
["Kontaktmail","Sum",{"$f":"SUM(C201:C204)","v":0},{"$f":"SUM(D201:D204)","v":0}]

{"sheet":"Holdresultat","index":5,"n_rows":37,"n_cols":5,"rows_kept":37,"cut":false,"hidden":false,"merged":[[0,0,0,4],[1,0,1,4]]}
[{"$f":"\"Skole DM i Skydning, Landsdelsfinale \" &Setup!B5","v":"Skole DM i Skydning, Landsdelsfinale 2021"}]
[{"$f":"\"Holdresultater, \" &Setup!B6","v":"Holdresultater, DGI Sønderjylland"}]
["Nr.","Skole / Hold","Point","/","x"]
[1,{"$f":"'Indtast resultat'!A93","v":"Augustenborg Skole 5A-1"},{"$f":"'Indtast resultat'!C97","v":762},"/",{"$f":"'Indtast resultat'!D97","v":14}]
[2,{"$f":"'Indtast resultat'!A27","v":"Broager Skole 5B-1"},{"$f":"'Indtast resultat'!C31","v":756},"/",{"$f":"'Indtast resultat'!D31","v":8}]
[3,{"$f":"'Indtast resultat'!A99","v":"Skærbæk Realskole 5A-1"},{"$f":"'Indtast resultat'!C103","v":756},"/",{"$f":"'Indtast resultat'!D103","v":7}]
[4,{"$f":"'Indtast resultat'!A57","v":"Humlehøj Skolen 5A-1"},{"$f":"'Indtast resultat'!C61","v":755},"/",{"$f":"'Indtast resultat'!D61","v":10}]
[5,{"$f":"'Indtast resultat'!A129","v":"Skærbæk Distriksskole 5A-1"},{"$f":"'Indtast resultat'!C133","v":753},"/",{"$f":"'Indtast resultat'!D133","v":14}]
[6,{"$f":"'Indtast resultat'!A111","v":"Augustenborg Skole 5B-1"},{"$f":"'Indtast resultat'!C115","v":753},"/",{"$f":"'Indtast resultat'!D115","v":13}]
[7,{"$f":"'Indtast resultat'!A117","v":"Digeskolen 5H-1"},{"$f":"'Indtast resultat'!C121","v":752},"/",{"$f":"'Indtast resultat'!D121","v":7}]
[8,{"$f":"'Indtast resultat'!A69","v":"Augustenborg Skole 5B-2"},{"$f":"'Indtast resultat'!C73","v":751},"/",{"$f":"'Indtast resultat'!D73","v":11}]
[9,{"$f":"'Indtast resultat'!A123","v":"Gråsten Skole 5A-1"},{"$f":"'Indtast resultat'!C127","v":749},"/",{"$f":"'Indtast resultat'!D127","v":14}]
[10,{"$f":"'Indtast resultat'!A75","v":"Gråsten Skole 5B-1"},{"$f":"'Indtast resultat'!C79","v":748},"/",{"$f":"'Indtast resultat'!D79","v":8}]
[11,{"$f":"'Indtast resultat'!A39","v":"Dybbøl Skolen 5B-1"},{"$f":"'Indtast resultat'!C43","v":747},"/",{"$f":"'Indtast resultat'!D43","v":8}]
[12,{"$f":"'Indtast resultat'!A81","v":"Dybbøl Skolen 5D-1"},{"$f":"'Indtast resultat'!C85","v":745},"/",{"$f":"'Indtast resultat'!D85","v":7}]
[13,{"$f":"'Indtast resultat'!A87","v":"Oksbøl Friskole 5M-1"},{"$f":"'Indtast resultat'!C91","v":745},"/",{"$f":"'Indtast resultat'!D91","v":3}]
[14,{"$f":"'Indtast resultat'!A3","v":"Svenstrup Friskole 5.-1"},{"$f":"'Indtast resultat'!C7","v":743},"/",{"$f":"'Indtast resultat'!D7","v":7}]
[15,{"$f":"'Indtast resultat'!A105","v":"Dybbøl Skolen 5C-1"},{"$f":"'Indtast resultat'!C109","v":740},"/",{"$f":"'Indtast resultat'!D109","v":7}]
[16,{"$f":"'Indtast resultat'!A33","v":"Oksbøl Friskole 5K-1"},{"$f":"'Indtast resultat'!C37","v":736},"/",{"$f":"'Indtast resultat'!D37","v":5}]
[17,{"$f":"'Indtast resultat'!A63","v":"Ahlmann Skolen 5A-1"},{"$f":"'Indtast resultat'!C67","v":735},"/",{"$f":"'Indtast resultat'!D67","v":8}]
[18,{"$f":"'Indtast resultat'!A9","v":"Broager Skole 5C-1"},{"$f":"'Indtast resultat'!C13","v":719},"/",{"$f":"'Indtast resultat'!D13","v":3}]
[19,{"$f":"'Indtast resultat'!A21","v":"Augustenborg Skole 5A-2"},{"$f":"'Indtast resultat'!C25","v":695},"/",{"$f":"'Indtast resultat'!D25","v":2}]
[20,{"$f":"'Indtast resultat'!A15","v":"Nordals Skolen 5B-1"},{"$f":"'Indtast resultat'!C19","v":0},"/",{"$f":"'Indtast resultat'!D19","v":0}]
[21,{"$f":"'Indtast resultat'!A45","v":"Dybbøl Skolen 5A-1"},{"$f":"'Indtast resultat'!C49","v":0},"/",{"$f":"'Indtast resultat'!D49","v":0}]
[22,{"$f":"'Indtast resultat'!A51","v":"Friskolen Østerlund 5-1"},{"$f":"'Indtast resultat'!C55","v":0},"/",{"$f":"'Indtast resultat'!D55","v":0}]
[23,{"$f":"'Indtast resultat'!A135","v":"Skole - Klasse - Hold"},{"$f":"'Indtast resultat'!C139","v":0},"/",{"$f":"'Indtast resultat'!D139","v":0}]
[24,{"$f":"'Indtast resultat'!A141","v":"Skole - Klasse - Hold"},{"$f":"'Indtast resultat'!C145","v":0},"/",{"$f":"'Indtast resultat'!D145","v":0}]
[25,{"$f":"'Indtast resultat'!A147","v":"Skole - Klasse - Hold"},{"$f":"'Indtast resultat'!C151","v":0},"/",{"$f":"'Indtast resultat'!D151","v":0}]
[26,{"$f":"'Indtast resultat'!A153","v":"Skole - Klasse - Hold"},{"$f":"'Indtast resultat'!C157","v":0},"/",{"$f":"'Indtast resultat'!D157","v":0}]
[27,{"$f":"'Indtast resultat'!A159","v":"Skole - Klasse - Hold"},{"$f":"'Indtast resultat'!C163","v":0},"/",{"$f":"'Indtast resultat'!D163","v":0}]
[28,{"$f":"'Indtast resultat'!A165","v":"Skole - Klasse - Hold"},{"$f":"'Indtast resultat'!C169","v":0},"/",{"$f":"'Indtast resultat'!D169","v":0}]
[29,{"$f":"'Indtast resultat'!A171","v":"Skole - Klasse - Hold"},{"$f":"'Indtast resultat'!C175","v":0},"/",{"$f":"'Indtast resultat'!D175","v":0}]
[30,{"$f":"'Indtast resultat'!A177","v":"Skole - Klasse - Hold"},{"$f":"'Indtast resultat'!C181","v":0},"/",{"$f":"'Indtast resultat'!D181","v":0}]
[31,{"$f":"'Indtast resultat'!A183","v":"Skole - Klasse - Hold"},{"$f":"'Indtast resultat'!C187","v":0},"/",{"$f":"'Indtast resultat'!D187","v":0}]
[32,{"$f":"'Indtast resultat'!A189","v":"Skole - Klasse - Hold"},{"$f":"'Indtast resultat'!C193","v":0},"/",{"$f":"'Indtast resultat'!D193","v":0}]
[33,{"$f":"'Indtast resultat'!A195","v":"Skole - Klasse - Hold"},{"$f":"'Indtast resultat'!C199","v":0},"/",{"$f":"'Indtast resultat'!D199","v":0}]
[34,{"$f":"'Indtast resultat'!A201","v":"Skole - Klasse - Hold"},{"$f":"'Indtast resultat'!C205","v":0},"/",{"$f":"'Indtast resultat'!D205","v":0}]

{"sheet":"Individuel","index":6,"n_rows":139,"n_cols":6,"rows_kept":139,"cut":false,"hidden":false,"merged":[[0,0,0,5],[1,0,1,5]]}
[{"$f":"\"Skole DM i Skydning, Landsdelsfinale \" &Setup!B5","v":"Skole DM i Skydning, Landsdelsfinale 2021"}]
[{"$f":"\"Individuelle resultater, \" &Setup!B6","v":"Individuelle resultater, DGI Sønderjylland"}]
["Nr.","Navn","Skole / Hold","Point","/","x"]
[1,{"$f":"'Indtast resultat'!B57","v":"Josefine Frisk Christensen"},{"$f":"'Indtast resultat'!A57","v":"Humlehøj Skolen 5A-1"},{"$f":"'Indtast resultat'!C57","v":198},"/",{"$f":"'Indtast resultat'!D57","v":4}]
[2,{"$f":"'Indtast resultat'!B132","v":"Maja Petersen"},{"$f":"'Indtast resultat'!A129","v":"Skærbæk Distriksskole 5A-1"},{"$f":"'Indtast resultat'!C132","v":196},"/",{"$f":"'Indtast resultat'!D132","v":5}]
[3,{"$f":"'Indtast resultat'!B102","v":"Silke Petersen"},{"$f":"'Indtast resultat'!A99","v":"Skærbæk Realskole 5A-1"},{"$f":"'Indtast resultat'!C102","v":195},"/",{"$f":"'Indtast resultat'!D102","v":3}]
[4,{"$f":"'Indtast resultat'!B95","v":"Sophia Rahr Semmelmann"},{"$f":"'Indtast resultat'!A93","v":"Augustenborg Skole 5A-1"},{"$f":"'Indtast resultat'!C95","v":194},"/",{"$f":"'Indtast resultat'!D95","v":7}]
[5,{"$f":"'Indtast resultat'!B123","v":"Marie Pedersen"},{"$f":"'Indtast resultat'!A123","v":"Gråsten Skole 5A-1"},{"$f":"'Indtast resultat'!C123","v":194},"/",{"$f":"'Indtast resultat'!D123","v":5}]
[6,{"$f":"'Indtast resultat'!B27","v":"Line Sofie Teichert Madsen"},{"$f":"'Indtast resultat'!A27","v":"Broager Skole 5B-1"},{"$f":"'Indtast resultat'!C27","v":192},"/",{"$f":"'Indtast resultat'!D27","v":4}]
[7,{"$f":"'Indtast resultat'!B90","v":"Layla Clausen"},{"$f":"'Indtast resultat'!A87","v":"Oksbøl Friskole 5M-1"},{"$f":"'Indtast resultat'!C90","v":192},"/",{"$f":"'Indtast resultat'!D90","v":2}]
[8,{"$f":"'Indtast resultat'!B3","v":"Luca Schmidt"},{"$f":"'Indtast resultat'!A3","v":"Svenstrup Friskole 5.-1"},{"$f":"'Indtast resultat'!C3","v":191},"/",{"$f":"'Indtast resultat'!D3","v":4}]
[9,{"$f":"'Indtast resultat'!B96","v":"Sofie Kinastovski Wolff"},{"$f":"'Indtast resultat'!A93","v":"Augustenborg Skole 5A-1"},{"$f":"'Indtast resultat'!C96","v":191},"/",{"$f":"'Indtast resultat'!D96","v":4}]
[10,{"$f":"'Indtast resultat'!B113","v":"Mathilde Plehn"},{"$f":"'Indtast resultat'!A111","v":"Augustenborg Skole 5B-1"},{"$f":"'Indtast resultat'!C113","v":191},"/",{"$f":"'Indtast resultat'!D113","v":4}]
[11,{"$f":"'Indtast resultat'!B100","v":"Casper Nissen"},{"$f":"'Indtast resultat'!A99","v":"Skærbæk Realskole 5A-1"},{"$f":"'Indtast resultat'!C100","v":191},"/",{"$f":"'Indtast resultat'!D100","v":3}]
[12,{"$f":"'Indtast resultat'!B93","v":"Amanda Angelica Hansen"},{"$f":"'Indtast resultat'!A93","v":"Augustenborg Skole 5A-1"},{"$f":"'Indtast resultat'!C93","v":191},"/",{"$f":"'Indtast resultat'!D93","v":2}]
[13,{"$f":"'Indtast resultat'!B77","v":"Nanna Brogaard Roth"},{"$f":"'Indtast resultat'!A75","v":"Gråsten Skole 5B-1"},{"$f":"'Indtast resultat'!C77","v":191},"/",{"$f":"'Indtast resultat'!D77","v":1}]
[14,{"$f":"'Indtast resultat'!B120","v":"Rasmus Andresen"},{"$f":"'Indtast resultat'!A117","v":"Digeskolen 5H-1"},{"$f":"'Indtast resultat'!C120","v":191},"/",{"$f":"'Indtast resultat'!D120","v":1}]
[15,{"$f":"'Indtast resultat'!B69","v":"Loke Uduak Skov Christensen"},{"$f":"'Indtast resultat'!A69","v":"Augustenborg Skole 5B-2"},{"$f":"'Indtast resultat'!C69","v":190},"/",{"$f":"'Indtast resultat'!D69","v":6}]
[16,{"$f":"'Indtast resultat'!B114","v":"Silje Lindberg Lorenzen"},{"$f":"'Indtast resultat'!A111","v":"Augustenborg Skole 5B-1"},{"$f":"'Indtast resultat'!C114","v":190},"/",{"$f":"'Indtast resultat'!D114","v":4}]
[17,{"$f":"'Indtast resultat'!B42","v":"Victoria Møller Böhlers"},{"$f":"'Indtast resultat'!A39","v":"Dybbøl Skolen 5B-1"},{"$f":"'Indtast resultat'!C42","v":190},"/",{"$f":"'Indtast resultat'!D42","v":3}]
[18,{"$f":"'Indtast resultat'!B118","v":"Line Skovgaard"},{"$f":"'Indtast resultat'!A117","v":"Digeskolen 5H-1"},{"$f":"'Indtast resultat'!C118","v":190},"/",{"$f":"'Indtast resultat'!D118","v":2}]
[19,{"$f":"'Indtast resultat'!B30","v":"Madicken Zahn Paulsen"},{"$f":"'Indtast resultat'!A27","v":"Broager Skole 5B-1"},{"$f":"'Indtast resultat'!C30","v":189},"/",{"$f":"'Indtast resultat'!D30","v":3}]
[20,{"$f":"'Indtast resultat'!B84","v":"Victoria Benedikte Grum Kjærgaard"},{"$f":"'Indtast resultat'!A81","v":"Dybbøl Skolen 5D-1"},{"$f":"'Indtast resultat'!C84","v":189},"/",{"$f":"'Indtast resultat'!D84","v":3}]
[21,{"$f":"'Indtast resultat'!B11","v":"Freja"},{"$f":"'Indtast resultat'!A9","v":"Broager Skole 5C-1"},{"$f":"'Indtast resultat'!C11","v":189},"/",{"$f":"'Indtast resultat'!D11","v":2}]
[22,{"$f":"'Indtast resultat'!B39","v":"Luna Kejser Jensen"},{"$f":"'Indtast resultat'!A39","v":"Dybbøl Skolen 5B-1"},{"$f":"'Indtast resultat'!C39","v":189},"/",{"$f":"'Indtast resultat'!D39","v":2}]
[23,{"$f":"'Indtast resultat'!B29","v":"Shasmina Kalika"},{"$f":"'Indtast resultat'!A27","v":"Broager Skole 5B-1"},{"$f":"'Indtast resultat'!C29","v":189},"/",{"$f":"'Indtast resultat'!D29","v":1}]
[24,{"$f":"'Indtast resultat'!B82","v":"Jones Hansen"},{"$f":"'Indtast resultat'!A81","v":"Dybbøl Skolen 5D-1"},{"$f":"'Indtast resultat'!C82","v":189},"/",{"$f":"'Indtast resultat'!D82","v":1}]
[25,{"$f":"'Indtast resultat'!B107","v":"Eliza Anna Andreasen"},{"$f":"'Indtast resultat'!A105","v":"Dybbøl Skolen 5C-1"},{"$f":"'Indtast resultat'!C107","v":189},"/",{"$f":"'Indtast resultat'!D107","v":1}]
[26,{"$f":"'Indtast resultat'!B130","v":"Mads Olesen"},{"$f":"'Indtast resultat'!A129","v":"Skærbæk Distriksskole 5A-1"},{"$f":"'Indtast resultat'!C130","v":188},"/",{"$f":"'Indtast resultat'!D130","v":5}]
[27,{"$f":"'Indtast resultat'!B70","v":"Maja Vonsild Jensen"},{"$f":"'Indtast resultat'!A69","v":"Augustenborg Skole 5B-2"},{"$f":"'Indtast resultat'!C70","v":188},"/",{"$f":"'Indtast resultat'!D70","v":4}]
[28,{"$f":"'Indtast resultat'!B119","v":"Bertram Teglskov"},{"$f":"'Indtast resultat'!A117","v":"Digeskolen 5H-1"},{"$f":"'Indtast resultat'!C119","v":188},"/",{"$f":"'Indtast resultat'!D119","v":3}]
[29,{"$f":"'Indtast resultat'!B124","v":"Philip Bossen"},{"$f":"'Indtast resultat'!A123","v":"Gråsten Skole 5A-1"},{"$f":"'Indtast resultat'!C124","v":188},"/",{"$f":"'Indtast resultat'!D124","v":3}]
[30,{"$f":"'Indtast resultat'!B22","v":"Mathias Franke Andersen"},{"$f":"'Indtast resultat'!A21","v":"Augustenborg Skole 5A-2"},{"$f":"'Indtast resultat'!C22","v":188},"/",{"$f":"'Indtast resultat'!D22","v":0}]
[31,{"$f":"'Indtast resultat'!B75","v":"Mille Laus Vollertsen"},{"$f":"'Indtast resultat'!A75","v":"Gråsten Skole 5B-1"},{"$f":"'Indtast resultat'!C75","v":187},"/",{"$f":"'Indtast resultat'!D75","v":4}]
[32,{"$f":"'Indtast resultat'!B59","v":"Camille Fick Johannsen"},{"$f":"'Indtast resultat'!A57","v":"Humlehøj Skolen 5A-1"},{"$f":"'Indtast resultat'!C59","v":187},"/",{"$f":"'Indtast resultat'!D59","v":2}]
[33,{"$f":"'Indtast resultat'!B63","v":"Johanna Bjerrum"},{"$f":"'Indtast resultat'!A63","v":"Ahlmann Skolen 5A-1"},{"$f":"'Indtast resultat'!C63","v":187},"/",{"$f":"'Indtast resultat'!D63","v":2}]
[34,{"$f":"'Indtast resultat'!B78","v":"Lars Heissel"},{"$f":"'Indtast resultat'!A75","v":"Gråsten Skole 5B-1"},{"$f":"'Indtast resultat'!C78","v":187},"/",{"$f":"'Indtast resultat'!D78","v":2}]
[35,{"$f":"'Indtast resultat'!B112","v":"Lærke Bak"},{"$f":"'Indtast resultat'!A111","v":"Augustenborg Skole 5B-1"},{"$f":"'Indtast resultat'!C112","v":187},"/",{"$f":"'Indtast resultat'!D112","v":2}]
[36,{"$f":"'Indtast resultat'!B131","v":"Emil Thomasen"},{"$f":"'Indtast resultat'!A129","v":"Skærbæk Distriksskole 5A-1"},{"$f":"'Indtast resultat'!C131","v":187},"/",{"$f":"'Indtast resultat'!D131","v":2}]
[37,{"$f":"'Indtast resultat'!B125","v":"Iben Nissen"},{"$f":"'Indtast resultat'!A123","v":"Gråsten Skole 5A-1"},{"$f":"'Indtast resultat'!C125","v":187},"/",{"$f":"'Indtast resultat'!D125","v":2}]
[38,{"$f":"'Indtast resultat'!B101","v":"Morten Vejrup"},{"$f":"'Indtast resultat'!A99","v":"Skærbæk Realskole 5A-1"},{"$f":"'Indtast resultat'!C101","v":187},"/",{"$f":"'Indtast resultat'!D101","v":1}]
[39,{"$f":"'Indtast resultat'!B71","v":"Nicolai Hadberg"},{"$f":"'Indtast resultat'!A69","v":"Augustenborg Skole 5B-2"},{"$f":"'Indtast resultat'!C71","v":187},"/",{"$f":"'Indtast resultat'!D71","v":0}]
[40,{"$f":"'Indtast resultat'!B89","v":"Sascha Møller Abrahamsen"},{"$f":"'Indtast resultat'!A87","v":"Oksbøl Friskole 5M-1"},{"$f":"'Indtast resultat'!C89","v":187},"/",{"$f":"'Indtast resultat'!D89","v":0}]
[41,{"$f":"'Indtast resultat'!B105","v":"Kathrine Holm Østergaard"},{"$f":"'Indtast resultat'!A105","v":"Dybbøl Skolen 5C-1"},{"$f":"'Indtast resultat'!C105","v":186},"/",{"$f":"'Indtast resultat'!D105","v":3}]
[42,{"$f":"'Indtast resultat'!B35","v":"Peter Hvid"},{"$f":"'Indtast resultat'!A33","v":"Oksbøl Friskole 5K-1"},{"$f":"'Indtast resultat'!C35","v":186},"/",{"$f":"'Indtast resultat'!D35","v":2}]
[43,{"$f":"'Indtast resultat'!B60","v":"Silas Loose Tinnesen"},{"$f":"'Indtast resultat'!A57","v":"Humlehøj Skolen 5A-1"},{"$f":"'Indtast resultat'!C60","v":186},"/",{"$f":"'Indtast resultat'!D60","v":2}]
[44,{"$f":"'Indtast resultat'!B83","v":"Frida Kou Jensen"},{"$f":"'Indtast resultat'!A81","v":"Dybbøl Skolen 5D-1"},{"$f":"'Indtast resultat'!C83","v":186},"/",{"$f":"'Indtast resultat'!D83","v":2}]
[45,{"$f":"'Indtast resultat'!B4","v":"Albert Jørgensen"},{"$f":"'Indtast resultat'!A3","v":"Svenstrup Friskole 5.-1"},{"$f":"'Indtast resultat'!C4","v":186},"/",{"$f":"'Indtast resultat'!D4","v":1}]
[46,{"$f":"'Indtast resultat'!B72","v":"Louiza Kaluzny-Jarrov"},{"$f":"'Indtast resultat'!A69","v":"Augustenborg Skole 5B-2"},{"$f":"'Indtast resultat'!C72","v":186},"/",{"$f":"'Indtast resultat'!D72","v":1}]
[47,{"$f":"'Indtast resultat'!B94","v":"Lea Raabe Jæger"},{"$f":"'Indtast resultat'!A93","v":"Augustenborg Skole 5A-1"},{"$f":"'Indtast resultat'!C94","v":186},"/",{"$f":"'Indtast resultat'!D94","v":1}]
[48,{"$f":"'Indtast resultat'!B5","v":"Jacob Alberts"},{"$f":"'Indtast resultat'!A3","v":"Svenstrup Friskole 5.-1"},{"$f":"'Indtast resultat'!C5","v":186},"/",{"$f":"'Indtast resultat'!D5","v":0}]
[49,{"$f":"'Indtast resultat'!B28","v":"Elias Helding Gandrup"},{"$f":"'Indtast resultat'!A27","v":"Broager Skole 5B-1"},{"$f":"'Indtast resultat'!C28","v":186},"/",{"$f":"'Indtast resultat'!D28","v":0}]
[50,{"$f":"'Indtast resultat'!B33","v":"Sofie Hansen"},{"$f":"'Indtast resultat'!A33","v":"Oksbøl Friskole 5K-1"},{"$f":"'Indtast resultat'!C33","v":186},"/",{"$f":"'Indtast resultat'!D33","v":0}]
[51,{"$f":"'Indtast resultat'!B87","v":"Celine Jungquist Christensen"},{"$f":"'Indtast resultat'!A87","v":"Oksbøl Friskole 5M-1"},{"$f":"'Indtast resultat'!C87","v":186},"/",{"$f":"'Indtast resultat'!D87","v":0}]
[52,{"$f":"'Indtast resultat'!B64","v":"Mimi Lyngkilde Clausen"},{"$f":"'Indtast resultat'!A63","v":"Ahlmann Skolen 5A-1"},{"$f":"'Indtast resultat'!C64","v":185},"/",{"$f":"'Indtast resultat'!D64","v":4}]
[53,{"$f":"'Indtast resultat'!B111","v":"Emma Bramvel Blaudzun"},{"$f":"'Indtast resultat'!A111","v":"Augustenborg Skole 5B-1"},{"$f":"'Indtast resultat'!C111","v":185},"/",{"$f":"'Indtast resultat'!D111","v":3}]
[54,{"$f":"'Indtast resultat'!B108","v":"Sofia Lykkeø Enggaard"},{"$f":"'Indtast resultat'!A105","v":"Dybbøl Skolen 5C-1"},{"$f":"'Indtast resultat'!C108","v":185},"/",{"$f":"'Indtast resultat'!D108","v":2}]
[55,{"$f":"'Indtast resultat'!B41","v":"Oliver Lundbjeg Bidstrup"},{"$f":"'Indtast resultat'!A39","v":"Dybbøl Skolen 5B-1"},{"$f":"'Indtast resultat'!C41","v":184},"/",{"$f":"'Indtast resultat'!D41","v":2}]
[56,{"$f":"'Indtast resultat'!B58","v":"Mathilde Uhrskov Lundgreen"},{"$f":"'Indtast resultat'!A57","v":"Humlehøj Skolen 5A-1"},{"$f":"'Indtast resultat'!C58","v":184},"/",{"$f":"'Indtast resultat'!D58","v":2}]
[57,{"$f":"'Indtast resultat'!B40","v":"Kaisa Spilling"},{"$f":"'Indtast resultat'!A39","v":"Dybbøl Skolen 5B-1"},{"$f":"'Indtast resultat'!C40","v":184},"/",{"$f":"'Indtast resultat'!D40","v":1}]
[58,{"$f":"'Indtast resultat'!B36","v":"Klara Poulsen Kristensen"},{"$f":"'Indtast resultat'!A33","v":"Oksbøl Friskole 5K-1"},{"$f":"'Indtast resultat'!C36","v":183},"/",{"$f":"'Indtast resultat'!D36","v":1}]
[59,{"$f":"'Indtast resultat'!B76","v":"Patrick Good Hollænder"},{"$f":"'Indtast resultat'!A75","v":"Gråsten Skole 5B-1"},{"$f":"'Indtast resultat'!C76","v":183},"/",{"$f":"'Indtast resultat'!D76","v":1}]
[60,{"$f":"'Indtast resultat'!B117","v":"Ida Marie Petersen"},{"$f":"'Indtast resultat'!A117","v":"Digeskolen 5H-1"},{"$f":"'Indtast resultat'!C117","v":183},"/",{"$f":"'Indtast resultat'!D117","v":1}]
[61,{"$f":"'Indtast resultat'!B99","v":"Lasse Sørensen"},{"$f":"'Indtast resultat'!A99","v":"Skærbæk Realskole 5A-1"},{"$f":"'Indtast resultat'!C99","v":183},"/",{"$f":"'Indtast resultat'!D99","v":0}]
[62,{"$f":"'Indtast resultat'!B129","v":"Oskar Jørgensen"},{"$f":"'Indtast resultat'!A129","v":"Skærbæk Distriksskole 5A-1"},{"$f":"'Indtast resultat'!C129","v":182},"/",{"$f":"'Indtast resultat'!D129","v":2}]
[63,{"$f":"'Indtast resultat'!B66","v":"Mille Jozefowicz"},{"$f":"'Indtast resultat'!A63","v":"Ahlmann Skolen 5A-1"},{"$f":"'Indtast resultat'!C66","v":182},"/",{"$f":"'Indtast resultat'!D66","v":1}]
[64,{"$f":"'Indtast resultat'!B34","v":"Lukas Schink Hansen"},{"$f":"'Indtast resultat'!A33","v":"Oksbøl Friskole 5K-1"},{"$f":"'Indtast resultat'!C34","v":181},"/",{"$f":"'Indtast resultat'!D34","v":2}]
[65,{"$f":"'Indtast resultat'!B65","v":"Viola Seeberg Haurum"},{"$f":"'Indtast resultat'!A63","v":"Ahlmann Skolen 5A-1"},{"$f":"'Indtast resultat'!C65","v":181},"/",{"$f":"'Indtast resultat'!D65","v":1}]
[66,{"$f":"'Indtast resultat'!B81","v":"Liv Gregersen Elmer"},{"$f":"'Indtast resultat'!A81","v":"Dybbøl Skolen 5D-1"},{"$f":"'Indtast resultat'!C81","v":181},"/",{"$f":"'Indtast resultat'!D81","v":1}]
[67,{"$f":"'Indtast resultat'!B126","v":"Nikola Malocha"},{"$f":"'Indtast resultat'!A123","v":"Gråsten Skole 5A-1"},{"$f":"'Indtast resultat'!C126","v":180},"/",{"$f":"'Indtast resultat'!D126","v":4}]
[68,{"$f":"'Indtast resultat'!B6","v":"Frederikke Clausen"},{"$f":"'Indtast resultat'!A3","v":"Svenstrup Friskole 5.-1"},{"$f":"'Indtast resultat'!C6","v":180},"/",{"$f":"'Indtast resultat'!D6","v":2}]
[69,{"$f":"'Indtast resultat'!B88","v":"Laura Kjærgaard"},{"$f":"'Indtast resultat'!A87","v":"Oksbøl Friskole 5M-1"},{"$f":"'Indtast resultat'!C88","v":180},"/",{"$f":"'Indtast resultat'!D88","v":1}]
[70,{"$f":"'Indtast resultat'!B106","v":"Said Mohammed Mosleh"},{"$f":"'Indtast resultat'!A105","v":"Dybbøl Skolen 5C-1"},{"$f":"'Indtast resultat'!C106","v":180},"/",{"$f":"'Indtast resultat'!D106","v":1}]
[71,{"$f":"'Indtast resultat'!B9","v":"Ida"},{"$f":"'Indtast resultat'!A9","v":"Broager Skole 5C-1"},{"$f":"'Indtast resultat'!C9","v":180},"/",{"$f":"'Indtast resultat'!D9","v":0}]
[72,{"$f":"'Indtast resultat'!B12","v":"William"},{"$f":"'Indtast resultat'!A9","v":"Broager Skole 5C-1"},{"$f":"'Indtast resultat'!C12","v":177},"/",{"$f":"'Indtast resultat'!D12","v":0}]
[73,{"$f":"'Indtast resultat'!B23","v":"Ida Karstensen Nielsen"},{"$f":"'Indtast resultat'!A21","v":"Augustenborg Skole 5A-2"},{"$f":"'Indtast resultat'!C23","v":176},"/",{"$f":"'Indtast resultat'!D23","v":1}]
[74,{"$f":"'Indtast resultat'!B21","v":"Rosa Margrethe Vohs"},{"$f":"'Indtast resultat'!A21","v":"Augustenborg Skole 5A-2"},{"$f":"'Indtast resultat'!C21","v":175},"/",{"$f":"'Indtast resultat'!D21","v":1}]
[75,{"$f":"'Indtast resultat'!B10","v":"Mads"},{"$f":"'Indtast resultat'!A9","v":"Broager Skole 5C-1"},{"$f":"'Indtast resultat'!C10","v":173},"/",{"$f":"'Indtast resultat'!D10","v":1}]
[76,{"$f":"'Indtast resultat'!B24","v":"Alexander Krogh"},{"$f":"'Indtast resultat'!A21","v":"Augustenborg Skole 5A-2"},{"$f":"'Indtast resultat'!C24","v":156},"/",{"$f":"'Indtast resultat'!D24","v":0}]
[77,{"$f":"'Indtast resultat'!B15","v":"Isabella Juhler"},{"$f":"'Indtast resultat'!A15","v":"Nordals Skolen 5B-1"},{"$f":"'Indtast resultat'!C15","v":0},"/",{"$f":"'Indtast resultat'!D15","v":0}]
[78,{"$f":"'Indtast resultat'!B16","v":"Mikkel Kjær"},{"$f":"'Indtast resultat'!A15","v":"Nordals Skolen 5B-1"},{"$f":"'Indtast resultat'!C16","v":0},"/",{"$f":"'Indtast resultat'!D16","v":0}]
[79,{"$f":"'Indtast resultat'!B17","v":"Simon Eriksen"},{"$f":"'Indtast resultat'!A15","v":"Nordals Skolen 5B-1"},{"$f":"'Indtast resultat'!C17","v":0},"/",{"$f":"'Indtast resultat'!D17","v":0}]
[80,{"$f":"'Indtast resultat'!B18","v":"Isabella Kunstmann"},{"$f":"'Indtast resultat'!A15","v":"Nordals Skolen 5B-1"},{"$f":"'Indtast resultat'!C18","v":0},"/",{"$f":"'Indtast resultat'!D18","v":0}]
[81,{"$f":"'Indtast resultat'!B45","v":"Silke Uldall Nielsen"},{"$f":"'Indtast resultat'!A45","v":"Dybbøl Skolen 5A-1"},{"$f":"'Indtast resultat'!C45","v":0},"/",{"$f":"'Indtast resultat'!D45","v":0}]
[82,{"$f":"'Indtast resultat'!B46","v":"Alberte Sofie Benkjer"},{"$f":"'Indtast resultat'!A45","v":"Dybbøl Skolen 5A-1"},{"$f":"'Indtast resultat'!C46","v":0},"/",{"$f":"'Indtast resultat'!D46","v":0}]
[83,{"$f":"'Indtast resultat'!B47","v":"Julie Sørensen"},{"$f":"'Indtast resultat'!A45","v":"Dybbøl Skolen 5A-1"},{"$f":"'Indtast resultat'!C47","v":0},"/",{"$f":"'Indtast resultat'!D47","v":0}]
[84,{"$f":"'Indtast resultat'!B48","v":"Hjalte Asmussen"},{"$f":"'Indtast resultat'!A45","v":"Dybbøl Skolen 5A-1"},{"$f":"'Indtast resultat'!C48","v":0},"/",{"$f":"'Indtast resultat'!D48","v":0}]
[85,{"$f":"'Indtast resultat'!B51","v":"Madina M. Werner"},{"$f":"'Indtast resultat'!A51","v":"Friskolen Østerlund 5-1"},{"$f":"'Indtast resultat'!C51","v":0},"/",{"$f":"'Indtast resultat'!D51","v":0}]
[86,{"$f":"'Indtast resultat'!B52","v":"Aksel S. Jessen"},{"$f":"'Indtast resultat'!A51","v":"Friskolen Østerlund 5-1"},{"$f":"'Indtast resultat'!C52","v":0},"/",{"$f":"'Indtast resultat'!D52","v":0}]
[87,{"$f":"'Indtast resultat'!B53","v":"Dicte W. Jørgensen"},{"$f":"'Indtast resultat'!A51","v":"Friskolen Østerlund 5-1"},{"$f":"'Indtast resultat'!C53","v":0},"/",{"$f":"'Indtast resultat'!D53","v":0}]
[88,{"$f":"'Indtast resultat'!B54","v":"Ida M. Lorenzen"},{"$f":"'Indtast resultat'!A51","v":"Friskolen Østerlund 5-1"},{"$f":"'Indtast resultat'!C54","v":0},"/",{"$f":"'Indtast resultat'!D54","v":0}]
[89,{"$f":"'Indtast resultat'!B135","v":"Elev 1"},{"$f":"'Indtast resultat'!A135","v":"Skole - Klasse - Hold"},{"$f":"'Indtast resultat'!C135","v":0},"/",{"$f":"'Indtast resultat'!D135","v":0}]
[90,{"$f":"'Indtast resultat'!B136","v":"Elev 2"},{"$f":"'Indtast resultat'!A135","v":"Skole - Klasse - Hold"},{"$f":"'Indtast resultat'!C136","v":0},"/",{"$f":"'Indtast resultat'!D136","v":0}]
[91,{"$f":"'Indtast resultat'!B137","v":"Elev 3"},{"$f":"'Indtast resultat'!A135","v":"Skole - Klasse - Hold"},{"$f":"'Indtast resultat'!C137","v":0},"/",{"$f":"'Indtast resultat'!D137","v":0}]
[92,{"$f":"'Indtast resultat'!B138","v":"Elev 4"},{"$f":"'Indtast resultat'!A135","v":"Skole - Klasse - Hold"},{"$f":"'Indtast resultat'!C138","v":0},"/",{"$f":"'Indtast resultat'!D138","v":0}]
[93,{"$f":"'Indtast resultat'!B141","v":"Elev 1"},{"$f":"'Indtast resultat'!A141","v":"Skole - Klasse - Hold"},{"$f":"'Indtast resultat'!C141","v":0},"/",{"$f":"'Indtast resultat'!D141","v":0}]
[94,{"$f":"'Indtast resultat'!B142","v":"Elev 2"},{"$f":"'Indtast resultat'!A141","v":"Skole - Klasse - Hold"},{"$f":"'Indtast resultat'!C142","v":0},"/",{"$f":"'Indtast resultat'!D142","v":0}]
[95,{"$f":"'Indtast resultat'!B143","v":"Elev 3"},{"$f":"'Indtast resultat'!A141","v":"Skole - Klasse - Hold"},{"$f":"'Indtast resultat'!C143","v":0},"/",{"$f":"'Indtast resultat'!D143","v":0}]
[96,{"$f":"'Indtast resultat'!B144","v":"Elev 4"},{"$f":"'Indtast resultat'!A141","v":"Skole - Klasse - Hold"},{"$f":"'Indtast resultat'!C144","v":0},"/",{"$f":"'Indtast resultat'!D144","v":0}]
[97,{"$f":"'Indtast resultat'!B147","v":"Elev 1"},{"$f":"'Indtast resultat'!A147","v":"Skole - Klasse - Hold"},{"$f":"'Indtast resultat'!C147","v":0},"/",{"$f":"'Indtast resultat'!D147","v":0}]
[98,{"$f":"'Indtast resultat'!B148","v":"Elev 2"},{"$f":"'Indtast resultat'!A147","v":"Skole - Klasse - Hold"},{"$f":"'Indtast resultat'!C148","v":0},"/",{"$f":"'Indtast resultat'!D148","v":0}]
[99,{"$f":"'Indtast resultat'!B149","v":"Elev 3"},{"$f":"'Indtast resultat'!A147","v":"Skole - Klasse - Hold"},{"$f":"'Indtast resultat'!C149","v":0},"/",{"$f":"'Indtast resultat'!D149","v":0}]
[100,{"$f":"'Indtast resultat'!B150","v":"Elev 4"},{"$f":"'Indtast resultat'!A147","v":"Skole - Klasse - Hold"},{"$f":"'Indtast resultat'!C150","v":0},"/",{"$f":"'Indtast resultat'!D150","v":0}]
[101,{"$f":"'Indtast resultat'!B153","v":"Elev 1"},{"$f":"'Indtast resultat'!A153","v":"Skole - Klasse - Hold"},{"$f":"'Indtast resultat'!C153","v":0},"/",{"$f":"'Indtast resultat'!D153","v":0}]
[102,{"$f":"'Indtast resultat'!B154","v":"Elev 2"},{"$f":"'Indtast resultat'!A153","v":"Skole - Klasse - Hold"},{"$f":"'Indtast resultat'!C154","v":0},"/",{"$f":"'Indtast resultat'!D154","v":0}]
[103,{"$f":"'Indtast resultat'!B155","v":"Elev 3"},{"$f":"'Indtast resultat'!A153","v":"Skole - Klasse - Hold"},{"$f":"'Indtast resultat'!C155","v":0},"/",{"$f":"'Indtast resultat'!D155","v":0}]
[104,{"$f":"'Indtast resultat'!B156","v":"Elev 4"},{"$f":"'Indtast resultat'!A153","v":"Skole - Klasse - Hold"},{"$f":"'Indtast resultat'!C156","v":0},"/",{"$f":"'Indtast resultat'!D156","v":0}]
[105,{"$f":"'Indtast resultat'!B159","v":"Elev 1"},{"$f":"'Indtast resultat'!A159","v":"Skole - Klasse - Hold"},{"$f":"'Indtast resultat'!C159","v":0},"/",{"$f":"'Indtast resultat'!D159","v":0}]
[106,{"$f":"'Indtast resultat'!B160","v":"Elev 2"},{"$f":"'Indtast resultat'!A159","v":"Skole - Klasse - Hold"},{"$f":"'Indtast resultat'!C160","v":0},"/",{"$f":"'Indtast resultat'!D160","v":0}]
[107,{"$f":"'Indtast resultat'!B161","v":"Elev 3"},{"$f":"'Indtast resultat'!A159","v":"Skole - Klasse - Hold"},{"$f":"'Indtast resultat'!C161","v":0},"/",{"$f":"'Indtast resultat'!D161","v":0}]
[108,{"$f":"'Indtast resultat'!B162","v":"Elev 4"},{"$f":"'Indtast resultat'!A159","v":"Skole - Klasse - Hold"},{"$f":"'Indtast resultat'!C162","v":0},"/",{"$f":"'Indtast resultat'!D162","v":0}]
[109,{"$f":"'Indtast resultat'!B165","v":"Elev 1"},{"$f":"'Indtast resultat'!A165","v":"Skole - Klasse - Hold"},{"$f":"'Indtast resultat'!C165","v":0},"/",{"$f":"'Indtast resultat'!D165","v":0}]
[110,{"$f":"'Indtast resultat'!B166","v":"Elev 2"},{"$f":"'Indtast resultat'!A165","v":"Skole - Klasse - Hold"},{"$f":"'Indtast resultat'!C166","v":0},"/",{"$f":"'Indtast resultat'!D166","v":0}]
[111,{"$f":"'Indtast resultat'!B167","v":"Elev 3"},{"$f":"'Indtast resultat'!A165","v":"Skole - Klasse - Hold"},{"$f":"'Indtast resultat'!C167","v":0},"/",{"$f":"'Indtast resultat'!D167","v":0}]
[112,{"$f":"'Indtast resultat'!B168","v":"Elev 4"},{"$f":"'Indtast resultat'!A165","v":"Skole - Klasse - Hold"},{"$f":"'Indtast resultat'!C168","v":0},"/",{"$f":"'Indtast resultat'!D168","v":0}]
[113,{"$f":"'Indtast resultat'!B171","v":"Elev 1"},{"$f":"'Indtast resultat'!A171","v":"Skole - Klasse - Hold"},{"$f":"'Indtast resultat'!C171","v":0},"/",{"$f":"'Indtast resultat'!D171","v":0}]
[114,{"$f":"'Indtast resultat'!B172","v":"Elev 2"},{"$f":"'Indtast resultat'!A171","v":"Skole - Klasse - Hold"},{"$f":"'Indtast resultat'!C172","v":0},"/",{"$f":"'Indtast resultat'!D172","v":0}]
[115,{"$f":"'Indtast resultat'!B173","v":"Elev 3"},{"$f":"'Indtast resultat'!A171","v":"Skole - Klasse - Hold"},{"$f":"'Indtast resultat'!C173","v":0},"/",{"$f":"'Indtast resultat'!D173","v":0}]
[116,{"$f":"'Indtast resultat'!B174","v":"Elev 4"},{"$f":"'Indtast resultat'!A171","v":"Skole - Klasse - Hold"},{"$f":"'Indtast resultat'!C174","v":0},"/",{"$f":"'Indtast resultat'!D174","v":0}]
[117,{"$f":"'Indtast resultat'!B177","v":"Elev 1"},{"$f":"'Indtast resultat'!A177","v":"Skole - Klasse - Hold"},{"$f":"'Indtast resultat'!C177","v":0},"/",{"$f":"'Indtast resultat'!D177","v":0}]
[118,{"$f":"'Indtast resultat'!B178","v":"Elev 2"},{"$f":"'Indtast resultat'!A177","v":"Skole - Klasse - Hold"},{"$f":"'Indtast resultat'!C178","v":0},"/",{"$f":"'Indtast resultat'!D178","v":0}]
[119,{"$f":"'Indtast resultat'!B179","v":"Elev 3"},{"$f":"'Indtast resultat'!A177","v":"Skole - Klasse - Hold"},{"$f":"'Indtast resultat'!C179","v":0},"/",{"$f":"'Indtast resultat'!D179","v":0}]
[120,{"$f":"'Indtast resultat'!B180","v":"Elev 4"},{"$f":"'Indtast resultat'!A177","v":"Skole - Klasse - Hold"},{"$f":"'Indtast resultat'!C180","v":0},"/",{"$f":"'Indtast resultat'!D180","v":0}]
[121,{"$f":"'Indtast resultat'!B183","v":"Elev 1"},{"$f":"'Indtast resultat'!A183","v":"Skole - Klasse - Hold"},{"$f":"'Indtast resultat'!C183","v":0},"/",{"$f":"'Indtast resultat'!D183","v":0}]
[122,{"$f":"'Indtast resultat'!B184","v":"Elev 2"},{"$f":"'Indtast resultat'!A183","v":"Skole - Klasse - Hold"},{"$f":"'Indtast resultat'!C184","v":0},"/",{"$f":"'Indtast resultat'!D184","v":0}]
[123,{"$f":"'Indtast resultat'!B185","v":"Elev 3"},{"$f":"'Indtast resultat'!A183","v":"Skole - Klasse - Hold"},{"$f":"'Indtast resultat'!C185","v":0},"/",{"$f":"'Indtast resultat'!D185","v":0}]
[124,{"$f":"'Indtast resultat'!B186","v":"Elev 4"},{"$f":"'Indtast resultat'!A183","v":"Skole - Klasse - Hold"},{"$f":"'Indtast resultat'!C186","v":0},"/",{"$f":"'Indtast resultat'!D186","v":0}]
[125,{"$f":"'Indtast resultat'!B189","v":"Elev 1"},{"$f":"'Indtast resultat'!A189","v":"Skole - Klasse - Hold"},{"$f":"'Indtast resultat'!C189","v":0},"/",{"$f":"'Indtast resultat'!D189","v":0}]
[126,{"$f":"'Indtast resultat'!B190","v":"Elev 2"},{"$f":"'Indtast resultat'!A189","v":"Skole - Klasse - Hold"},{"$f":"'Indtast resultat'!C190","v":0},"/",{"$f":"'Indtast resultat'!D190","v":0}]
[127,{"$f":"'Indtast resultat'!B191","v":"Elev 3"},{"$f":"'Indtast resultat'!A189","v":"Skole - Klasse - Hold"},{"$f":"'Indtast resultat'!C191","v":0},"/",{"$f":"'Indtast resultat'!D191","v":0}]
[128,{"$f":"'Indtast resultat'!B192","v":"Elev 4"},{"$f":"'Indtast resultat'!A189","v":"Skole - Klasse - Hold"},{"$f":"'Indtast resultat'!C192","v":0},"/",{"$f":"'Indtast resultat'!D192","v":0}]
[129,{"$f":"'Indtast resultat'!B195","v":"Elev 1"},{"$f":"'Indtast resultat'!A195","v":"Skole - Klasse - Hold"},{"$f":"'Indtast resultat'!C195","v":0},"/",{"$f":"'Indtast resultat'!D195","v":0}]
[130,{"$f":"'Indtast resultat'!B196","v":"Elev 2"},{"$f":"'Indtast resultat'!A195","v":"Skole - Klasse - Hold"},{"$f":"'Indtast resultat'!C196","v":0},"/",{"$f":"'Indtast resultat'!D196","v":0}]
[131,{"$f":"'Indtast resultat'!B197","v":"Elev 3"},{"$f":"'Indtast resultat'!A195","v":"Skole - Klasse - Hold"},{"$f":"'Indtast resultat'!C197","v":0},"/",{"$f":"'Indtast resultat'!D197","v":0}]
[132,{"$f":"'Indtast resultat'!B198","v":"Elev 4"},{"$f":"'Indtast resultat'!A195","v":"Skole - Klasse - Hold"},{"$f":"'Indtast resultat'!C198","v":0},"/",{"$f":"'Indtast resultat'!D198","v":0}]
[133,{"$f":"'Indtast resultat'!B201","v":"Elev 1"},{"$f":"'Indtast resultat'!A201","v":"Skole - Klasse - Hold"},{"$f":"'Indtast resultat'!C201","v":0},"/",{"$f":"'Indtast resultat'!D201","v":0}]
[134,{"$f":"'Indtast resultat'!B202","v":"Elev 2"},{"$f":"'Indtast resultat'!A201","v":"Skole - Klasse - Hold"},{"$f":"'Indtast resultat'!C202","v":0},"/",{"$f":"'Indtast resultat'!D202","v":0}]
[135,{"$f":"'Indtast resultat'!B203","v":"Elev 3"},{"$f":"'Indtast resultat'!A201","v":"Skole - Klasse - Hold"},{"$f":"'Indtast resultat'!C203","v":0},"/",{"$f":"'Indtast resultat'!D203","v":0}]
[136,{"$f":"'Indtast resultat'!B204","v":"Elev 4"},{"$f":"'Indtast resultat'!A201","v":"Skole - Klasse - Hold"},{"$f":"'Indtast resultat'!C204","v":0},"/",{"$f":"'Indtast resultat'!D204","v":0}]

{"sheet":"Top3","index":7,"n_rows":30,"n_cols":5,"rows_kept":30,"cut":false,"hidden":false,"merged":[]}
[{"$f":"\"Skole DM i Skydning, Landsdelsfinale \" &Setup!B5 & \"\nMedaljetagere, \" &Setup!B6","v":"Skole DM i Skydning, Landsdelsfinale 2021\nMedaljetagere, DGI Sønderjylland"}]
["Guld"]
["Augustenborg Skole 5A-1"]
["Navn","Skivenr","Point","/","x"]
["Amanda Angelica Hansen",135601,191,"/",2]
["Lea Raabe Jæger",135611,186,"/",1]
["Sophia Rahr Semmelmann",135621,194,"/",7]
["Sofie Kinastovski Wolff",135631,191,"/",4]
["Midtals Skytteforening","I alt",762,"/",14]
["DGI Sønderjylland",null,"Retur til \"Indtast resultat\""]
[]
["Sølv"]
["Broager Skole 5B-1"]
["Navn","Skivenr","Point","/","x"]
["Line Sofie Teichert Madsen",135161,192,"/",4]
["Elias Helding Gandrup",135171,186,"/",0]
["Shasmina Kalika",135181,189,"/",1]
["Madicken Zahn Paulsen",135191,189,"/",3]
["Broagerlands Skytteforening","I alt",756,"/",8]
["DGI Sønderjylland",null,"Retur til \"Indtast resultat\""]
[]
["Bronze"]
["Skærbæk Realskole 5A-1"]
["Navn","Skivenr","Point","/","x"]
["Lasse Sørensen",135641,183,"/",0]
["Casper Nissen",135651,191,"/",3]
["Morten Vejrup",135661,187,"/",1]
["Silke Petersen",135671,195,"/",3]
["Sparta","I alt",756,"/",7]
["DGI Sønderjylland",null,"Retur til \"Indtast resultat\""]

{"sheet":"Skydetid","index":8,"n_rows":37,"n_cols":13,"rows_kept":37,"cut":false,"hidden":false,"merged":[[0,0,0,4],[1,0,1,4]]}
[{"$f":"\"Skole DM i Skydning, Landsdelsfinale \" &Setup!B5","v":"Skole DM i Skydning, Landsdelsfinale 2021"}]
["Holdoversigt, Skydetider"]
["Nr.","Skole / Hold","Kl","/","Bane"]
[1,{"$f":"'Indtast resultat'!A3","v":"Svenstrup Friskole 5.-1"},null,"/",null,null,1110,"/","2-5",null,1145,"/","2-5"]
[2,{"$f":"'Indtast resultat'!A9","v":"Broager Skole 5C-1"},null,"/",null,null,1110,"/","7-10",null,1145,"/","7-10"]
[3,{"$f":"'Indtast resultat'!A15","v":"Nordals Skolen 5B-1"},null,"/",null,null,1110,"/","12-15",null,1145,"/","12-15"]
[4,{"$f":"'Indtast resultat'!A21","v":"Augustenborg Skole 5A-2"},null,"/",null,null,1110,"/","16-19",null,1145,"/","16-19"]
[5,{"$f":"'Indtast resultat'!A27","v":"Broager Skole 5B-1"},null,"/",null,null,1110,"/","20-23",null,1145,"/","20-23"]
[6,{"$f":"'Indtast resultat'!A33","v":"Oksbøl Friskole 5K-1"},null,"/",null,null,1110,"/","24-27",null,1145,"/","24-27"]
[7,{"$f":"'Indtast resultat'!A39","v":"Dybbøl Skolen 5B-1"},null,"/",null,null,1110,"/","28-31",null,1145,"/","28-31"]
[8,{"$f":"'Indtast resultat'!A45","v":"Dybbøl Skolen 5A-1"},null,"/",null,null,1110,"/","32-35",null,1145,"/","32-35"]
[9,{"$f":"'Indtast resultat'!A51","v":"Friskolen Østerlund 5-1"},null,"/",null,null,1110,"/","37-40",null,1145,"/","37-40"]
[10,{"$f":"'Indtast resultat'!A57","v":"Humlehøj Skolen 5A-1"},null,"/",null,null,1110,"/","44-48",null,1145,"/","44-48"]
[11,{"$f":"'Indtast resultat'!A63","v":"Ahlmann Skolen 5A-1"},null,"/",null,null,1110,"/","49-52",null,1145,"/","49-52"]
[12,{"$f":"'Indtast resultat'!A69","v":"Augustenborg Skole 5B-2"},null,"/",null,null,1110,"/","53-56",null,1145,"/","53-56"]
[13,{"$f":"'Indtast resultat'!A75","v":"Gråsten Skole 5B-1"},null,"/",null,null,1110,"/","57-60",null,1145,"/","57-60"]
[14,{"$f":"'Indtast resultat'!A81","v":"Dybbøl Skolen 5D-1"},null,"/",null,null,1110,"/","62-65",null,1145,"/","62-65"]
[15,{"$f":"'Indtast resultat'!A87","v":"Oksbøl Friskole 5M-1"},null,"/",null,null,1110,"/","66-69",null,1145,"/","66-69"]
[16,{"$f":"'Indtast resultat'!A93","v":"Augustenborg Skole 5A-1"},null,"/",null,null,1110,"/","70-73",null,1145,"/","70-73"]
[17,{"$f":"'Indtast resultat'!A99","v":"Skærbæk Realskole 5A-1"},null,"/",null,null,1110,"/",null,null,1145,"/"]
[18,{"$f":"'Indtast resultat'!A105","v":"Dybbøl Skolen 5C-1"},null,"/"]
[19,{"$f":"'Indtast resultat'!A111","v":"Augustenborg Skole 5B-1"},null,"/"]
[20,{"$f":"'Indtast resultat'!A117","v":"Digeskolen 5H-1"},null,"/"]
[21,{"$f":"'Indtast resultat'!A123","v":"Gråsten Skole 5A-1"},null,"/"]
[22,{"$f":"'Indtast resultat'!A129","v":"Skærbæk Distriksskole 5A-1"},null,"/"]
[23,{"$f":"'Indtast resultat'!A135","v":"Skole - Klasse - Hold"},null,"/"]
[24,{"$f":"'Indtast resultat'!A141","v":"Skole - Klasse - Hold"},null,"/"]
[25,{"$f":"'Indtast resultat'!A147","v":"Skole - Klasse - Hold"},null,"/"]
[26,{"$f":"'Indtast resultat'!A153","v":"Skole - Klasse - Hold"},null,"/"]
[27,{"$f":"'Indtast resultat'!A159","v":"Skole - Klasse - Hold"},null,"/"]
[28,{"$f":"'Indtast resultat'!A165","v":"Skole - Klasse - Hold"},null,"/"]
[29,{"$f":"'Indtast resultat'!A171","v":"Skole - Klasse - Hold"},null,"/"]
[30,{"$f":"'Indtast resultat'!A177","v":"Skole - Klasse - Hold"},null,"/"]
[31,{"$f":"'Indtast resultat'!A183","v":"Skole - Klasse - Hold"},null,"/"]
[32,{"$f":"'Indtast resultat'!A189","v":"Skole - Klasse - Hold"},null,"/"]
[33,{"$f":"'Indtast resultat'!A195","v":"Skole - Klasse - Hold"},null,"/"]
[34,{"$f":"'Indtast resultat'!A201","v":"Skole - Klasse - Hold"},null,"/"]

{"sheet":"Finale","index":9,"n_rows":11,"n_cols":45,"rows_kept":11,"cut":false,"hidden":true,"merged":[]}
[null,null,"Skole DM i Skydning - Finale 2019"]
[null,null,"DGI Skydning","Indledende",null,null,"Finale",null,null,"Total"]
[null,null,"Dansk Skoleidræt","Point","/","x","Point","/","x","Point","/","x",5,null,10,null,15,null,20,null,25,null,30,null,35,null,40,null,45,null,50,null,55,null,60,null,65,null,70,null,75,null,80]
[null,{"$f":"RANK(AS4,AS$4:AS$11)","v":1},"Skole 1",null,"/",null,{"$f":"M4+O4+Q4+S4+U4+W4+Y4+AA4+AC4+AE4+AG4+AI4+AK4+AM4+AO4+AQ4","v":0},"/",{"$f":"N4+P4+R4+T4+V4+X4+Z4+AB4+AD4+AF4+AH4+AJ4+AL4+AN4+AP4+AR4","v":0},{"$f":"G4+D4","v":0},"/",{"$f":"I4+F4","v":0},null,null,null,null,null,null,null,null,null,null,null,null,null,null,null,null,null,null,null,null,null,null,null,null,null,null,null,null,null,null,null,null,{"$f":"J4+L4/1000","v":0}]
[null,1,"Skole 2",null,"/",null,{"$f":"M5+O5+Q5+S5+U5+W5+Y5+AA5+AC5+AE5+AG5+AI5+AK5+AM5+AO5+AQ5","v":0},"/",{"$f":"N5+P5+R5+T5+V5+X5+Z5+AB5+AD5+AF5+AH5+AJ5+AL5+AN5+AP5+AR5","v":0},{"$f":"G5+D5","v":0},"/",{"$f":"I5+F5","v":0},null,null,null,null,null,null,null,null,null,null,null,null,null,null,null,null,null,null,null,null,null,null,null,null,null,null,null,null,null,null,null,null,0]
[null,1,"Skole 3",null,"/",null,0,"/",0,0,"/",0,null,null,null,null,null,null,null,null,null,null,null,null,null,null,null,null,null,null,null,null,null,null,null,null,null,null,null,null,null,null,null,null,0]
[null,1,"Skole 4",null,"/",null,0,"/",0,0,"/",0,null,null,null,null,null,null,null,null,null,null,null,null,null,null,null,null,null,null,null,null,null,null,null,null,null,null,null,null,null,null,null,null,0]
[null,1,"Skole 5",null,"/",null,0,"/",0,0,"/",0,null,null,null,null,null,null,null,null,null,null,null,null,null,null,null,null,null,null,null,null,null,null,null,null,null,null,null,null,null,null,null,null,0]
[null,1,"Skole 6",null,"/",null,{"$f":"M9+O9+Q9+S9+U9+W9+Y9+AA9+AC9+AE9+AG9+AI9+AK9+AM9+AO9+AQ9","v":0},"/",{"$f":"N9+P9+R9+T9+V9+X9+Z9+AB9+AD9+AF9+AH9+AJ9+AL9+AN9+AP9+AR9","v":0},{"$f":"G9+D9","v":0},"/",{"$f":"I9+F9","v":0},null,null,null,null,null,null,null,null,null,null,null,null,null,null,null,null,null,null,null,null,null,null,null,null,null,null,null,null,null,null,null,null,0]
[null,1,"Skole 7",null,"/",null,{"$f":"M10+O10+Q10+S10+U10+W10+Y10+AA10+AC10+AE10+AG10+AI10+AK10+AM10+AO10+AQ10","v":0},"/",{"$f":"N10+P10+R10+T10+V10+X10+Z10+AB10+AD10+AF10+AH10+AJ10+AL10+AN10+AP10+AR10","v":0},{"$f":"G10+D10","v":0},"/",{"$f":"I10+F10","v":0},null,null,null,null,null,null,null,null,null,null,null,null,null,null,null,null,null,null,null,null,null,null,null,null,null,null,null,null,null,null,null,null,0]
[null,1,"Skole 8",null,"/",null,{"$f":"M11+O11+Q11+S11+U11+W11+Y11+AA11+AC11+AE11+AG11+AI11+AK11+AM11+AO11+AQ11","v":0},"/",{"$f":"N11+P11+R11+T11+V11+X11+Z11+AB11+AD11+AF11+AH11+AJ11+AL11+AN11+AP11+AR11","v":0},{"$f":"G11+D11","v":0},"/",{"$f":"I11+F11","v":0},null,null,null,null,null,null,null,null,null,null,null,null,null,null,null,null,null,null,null,null,null,null,null,null,null,null,null,null,null,null,null,null,0]

{"sheet":"01","index":10,"n_rows":8,"n_cols":5,"rows_kept":8,"cut":false,"hidden":false,"merged":[]}
[{"$f":"'Indtast resultat'!A3","v":"Svenstrup Friskole 5.-1"}]
["Navn","Skivenr","Point","/","x"]
[{"$f":"'Indtast resultat'!B3","v":"Luca Schmidt"},{"$f":"'Indtast resultat'!E3","v":135001},{"$f":"'Indtast resultat'!C3","v":191},"/",{"$f":"'Indtast resultat'!D3","v":4}]
[{"$f":"'Indtast resultat'!B4","v":"Albert Jørgensen"},{"$f":"'Indtast resultat'!E4","v":135011},{"$f":"'Indtast resultat'!C4","v":186},"/",{"$f":"'Indtast resultat'!D4","v":1}]
[{"$f":"'Indtast resultat'!B5","v":"Jacob Alberts"},{"$f":"'Indtast resultat'!E5","v":135021},{"$f":"'Indtast resultat'!C5","v":186},"/",{"$f":"'Indtast resultat'!D5","v":0}]
[{"$f":"'Indtast resultat'!B6","v":"Frederikke Clausen"},{"$f":"'Indtast resultat'!E6","v":135031},{"$f":"'Indtast resultat'!C6","v":180},"/",{"$f":"'Indtast resultat'!D6","v":2}]
[{"$f":"'Indtast resultat'!A4","v":"Svenstrup Skytteforening"},"I alt",{"$f":"'Indtast resultat'!C7","v":743},"/",{"$f":"'Indtast resultat'!D7","v":7}]
[{"$f":"'Indtast resultat'!A5","v":"DGI Sønderjylland"},null,"Retur til \"Indtast resultat\""]

{"sheet":"02","index":11,"n_rows":8,"n_cols":5,"rows_kept":8,"cut":false,"hidden":false,"merged":[]}
[{"$f":"'Indtast resultat'!A9","v":"Broager Skole 5C-1"}]
["Navn","Skivenr","Point","/","x"]
[{"$f":"'Indtast resultat'!B9","v":"Ida"},{"$f":"'Indtast resultat'!E9","v":135041},{"$f":"'Indtast resultat'!C9","v":180},"/",{"$f":"'Indtast resultat'!D9","v":0}]
[{"$f":"'Indtast resultat'!B10","v":"Mads"},{"$f":"'Indtast resultat'!E10","v":135051},{"$f":"'Indtast resultat'!C10","v":173},"/",{"$f":"'Indtast resultat'!D10","v":1}]
[{"$f":"'Indtast resultat'!B11","v":"Freja"},{"$f":"'Indtast resultat'!E11","v":135061},{"$f":"'Indtast resultat'!C11","v":189},"/",{"$f":"'Indtast resultat'!D11","v":2}]
[{"$f":"'Indtast resultat'!B12","v":"William"},{"$f":"'Indtast resultat'!E12","v":135071},{"$f":"'Indtast resultat'!C12","v":177},"/",{"$f":"'Indtast resultat'!D12","v":0}]
[{"$f":"'Indtast resultat'!A10","v":"Broagerlands Skytteforening"},"I alt",{"$f":"'Indtast resultat'!C13","v":719},"/",{"$f":"'Indtast resultat'!D13","v":3}]
[{"$f":"'Indtast resultat'!A11","v":"DGI Sønderjylland"},null,"Retur til \"Indtast resultat\""]

{"sheet":"03","index":12,"n_rows":8,"n_cols":5,"rows_kept":8,"cut":false,"hidden":false,"merged":[]}
[{"$f":"'Indtast resultat'!A15","v":"Nordals Skolen 5B-1"}]
["Navn","Skivenr","Point","/","x"]
[{"$f":"'Indtast resultat'!B15","v":"Isabella Juhler"},{"$f":"'Indtast resultat'!E15","v":135081},{"$f":"'Indtast resultat'!C15","v":0},"/",{"$f":"'Indtast resultat'!D15","v":0}]
[{"$f":"'Indtast resultat'!B16","v":"Mikkel Kjær"},{"$f":"'Indtast resultat'!E16","v":135091},{"$f":"'Indtast resultat'!C16","v":0},"/",{"$f":"'Indtast resultat'!D16","v":0}]
[{"$f":"'Indtast resultat'!B17","v":"Simon Eriksen"},{"$f":"'Indtast resultat'!E17","v":135101},{"$f":"'Indtast resultat'!C17","v":0},"/",{"$f":"'Indtast resultat'!D17","v":0}]
[{"$f":"'Indtast resultat'!B18","v":"Isabella Kunstmann"},{"$f":"'Indtast resultat'!E18","v":135111},{"$f":"'Indtast resultat'!C18","v":0},"/",{"$f":"'Indtast resultat'!D18","v":0}]
[{"$f":"'Indtast resultat'!A16","v":"Nordals Skyttekreds"},"I alt",{"$f":"'Indtast resultat'!C19","v":0},"/",{"$f":"'Indtast resultat'!D19","v":0}]
[{"$f":"'Indtast resultat'!A17","v":"DGI Sønderjylland"},null,"Retur til \"Indtast resultat\""]

{"sheet":"04","index":13,"n_rows":8,"n_cols":5,"rows_kept":8,"cut":false,"hidden":false,"merged":[]}
[{"$f":"'Indtast resultat'!A21","v":"Augustenborg Skole 5A-2"}]
["Navn","Skivenr","Point","/","x"]
[{"$f":"'Indtast resultat'!B21","v":"Rosa Margrethe Vohs"},{"$f":"'Indtast resultat'!E21","v":135121},{"$f":"'Indtast resultat'!C21","v":175},"/",{"$f":"'Indtast resultat'!D21","v":1}]
[{"$f":"'Indtast resultat'!B22","v":"Mathias Franke Andersen"},{"$f":"'Indtast resultat'!E22","v":135131},{"$f":"'Indtast resultat'!C22","v":188},"/",{"$f":"'Indtast resultat'!D22","v":0}]
[{"$f":"'Indtast resultat'!B23","v":"Ida Karstensen Nielsen"},{"$f":"'Indtast resultat'!E23","v":135141},{"$f":"'Indtast resultat'!C23","v":176},"/",{"$f":"'Indtast resultat'!D23","v":1}]
[{"$f":"'Indtast resultat'!B24","v":"Alexander Krogh"},{"$f":"'Indtast resultat'!E24","v":135151},{"$f":"'Indtast resultat'!C24","v":156},"/",{"$f":"'Indtast resultat'!D24","v":0}]
[{"$f":"'Indtast resultat'!A22","v":"Midtals Skytteforening"},"I alt",{"$f":"'Indtast resultat'!C25","v":695},"/",{"$f":"'Indtast resultat'!D25","v":2}]
[{"$f":"'Indtast resultat'!A23","v":"DGI Sønderjylland"},null,"Retur til \"Indtast resultat\""]

{"sheet":"05","index":14,"n_rows":8,"n_cols":5,"rows_kept":8,"cut":false,"hidden":false,"merged":[]}
[{"$f":"'Indtast resultat'!A27","v":"Broager Skole 5B-1"}]
["Navn","Skivenr","Point","/","x"]
[{"$f":"'Indtast resultat'!B27","v":"Line Sofie Teichert Madsen"},{"$f":"'Indtast resultat'!E27","v":135161},{"$f":"'Indtast resultat'!C27","v":192},"/",{"$f":"'Indtast resultat'!D27","v":4}]
[{"$f":"'Indtast resultat'!B28","v":"Elias Helding Gandrup"},{"$f":"'Indtast resultat'!E28","v":135171},{"$f":"'Indtast resultat'!C28","v":186},"/",{"$f":"'Indtast resultat'!D28","v":0}]
[{"$f":"'Indtast resultat'!B29","v":"Shasmina Kalika"},{"$f":"'Indtast resultat'!E29","v":135181},{"$f":"'Indtast resultat'!C29","v":189},"/",{"$f":"'Indtast resultat'!D29","v":1}]
[{"$f":"'Indtast resultat'!B30","v":"Madicken Zahn Paulsen"},{"$f":"'Indtast resultat'!E30","v":135191},{"$f":"'Indtast resultat'!C30","v":189},"/",{"$f":"'Indtast resultat'!D30","v":3}]
[{"$f":"'Indtast resultat'!A28","v":"Broagerlands Skytteforening"},"I alt",{"$f":"'Indtast resultat'!C31","v":756},"/",{"$f":"'Indtast resultat'!D31","v":8}]
[{"$f":"'Indtast resultat'!A29","v":"DGI Sønderjylland"},null,"Retur til \"Indtast resultat\""]

{"sheet":"06","index":15,"n_rows":8,"n_cols":5,"rows_kept":8,"cut":false,"hidden":false,"merged":[]}
[{"$f":"'Indtast resultat'!A33","v":"Oksbøl Friskole 5K-1"}]
["Navn","Skivenr","Point","/","x"]
[{"$f":"'Indtast resultat'!B33","v":"Sofie Hansen"},{"$f":"'Indtast resultat'!E33","v":135201},{"$f":"'Indtast resultat'!C33","v":186},"/",{"$f":"'Indtast resultat'!D33","v":0}]
[{"$f":"'Indtast resultat'!B34","v":"Lukas Schink Hansen"},{"$f":"'Indtast resultat'!E34","v":135211},{"$f":"'Indtast resultat'!C34","v":181},"/",{"$f":"'Indtast resultat'!D34","v":2}]
[{"$f":"'Indtast resultat'!B35","v":"Peter Hvid"},{"$f":"'Indtast resultat'!E35","v":135221},{"$f":"'Indtast resultat'!C35","v":186},"/",{"$f":"'Indtast resultat'!D35","v":2}]
[{"$f":"'Indtast resultat'!B36","v":"Klara Poulsen Kristensen"},{"$f":"'Indtast resultat'!E36","v":135231},{"$f":"'Indtast resultat'!C36","v":183},"/",{"$f":"'Indtast resultat'!D36","v":1}]
[{"$f":"'Indtast resultat'!A34","v":"Nordals Skyttekreds"},"I alt",{"$f":"'Indtast resultat'!C37","v":736},"/",{"$f":"'Indtast resultat'!D37","v":5}]
[{"$f":"'Indtast resultat'!A35","v":"DGI Sønderjylland"},null,"Retur til \"Indtast resultat\""]

{"sheet":"07","index":16,"n_rows":8,"n_cols":5,"rows_kept":8,"cut":false,"hidden":false,"merged":[]}
[{"$f":"'Indtast resultat'!A39","v":"Dybbøl Skolen 5B-1"}]
["Navn","Skivenr","Point","/","x"]
[{"$f":"'Indtast resultat'!B39","v":"Luna Kejser Jensen"},{"$f":"'Indtast resultat'!E39","v":135241},{"$f":"'Indtast resultat'!C39","v":189},"/",{"$f":"'Indtast resultat'!D39","v":2}]
[{"$f":"'Indtast resultat'!B40","v":"Kaisa Spilling"},{"$f":"'Indtast resultat'!E40","v":135251},{"$f":"'Indtast resultat'!C40","v":184},"/",{"$f":"'Indtast resultat'!D40","v":1}]
[{"$f":"'Indtast resultat'!B41","v":"Oliver Lundbjeg Bidstrup"},{"$f":"'Indtast resultat'!E41","v":135261},{"$f":"'Indtast resultat'!C41","v":184},"/",{"$f":"'Indtast resultat'!D41","v":2}]
[{"$f":"'Indtast resultat'!B42","v":"Victoria Møller Böhlers"},{"$f":"'Indtast resultat'!E42","v":135271},{"$f":"'Indtast resultat'!C42","v":190},"/",{"$f":"'Indtast resultat'!D42","v":3}]
[{"$f":"'Indtast resultat'!A40","v":"Sønderborg Skyttekreds"},"I alt",{"$f":"'Indtast resultat'!C43","v":747},"/",{"$f":"'Indtast resultat'!D43","v":8}]
[{"$f":"'Indtast resultat'!A41","v":"DGI Sønderjylland"},null,"Retur til \"Indtast resultat\""]

{"sheet":"08","index":17,"n_rows":8,"n_cols":5,"rows_kept":8,"cut":false,"hidden":false,"merged":[]}
[{"$f":"'Indtast resultat'!A45","v":"Dybbøl Skolen 5A-1"}]
["Navn","Skivenr","Point","/","x"]
[{"$f":"'Indtast resultat'!B45","v":"Silke Uldall Nielsen"},{"$f":"'Indtast resultat'!E45","v":135281},{"$f":"'Indtast resultat'!C45","v":0},"/",{"$f":"'Indtast resultat'!D45","v":0}]
[{"$f":"'Indtast resultat'!B46","v":"Alberte Sofie Benkjer"},{"$f":"'Indtast resultat'!E46","v":135291},{"$f":"'Indtast resultat'!C46","v":0},"/",{"$f":"'Indtast resultat'!D46","v":0}]
[{"$f":"'Indtast resultat'!B47","v":"Julie Sørensen"},{"$f":"'Indtast resultat'!E47","v":135301},{"$f":"'Indtast resultat'!C47","v":0},"/",{"$f":"'Indtast resultat'!D47","v":0}]
[{"$f":"'Indtast resultat'!B48","v":"Hjalte Asmussen"},{"$f":"'Indtast resultat'!E48","v":135311},{"$f":"'Indtast resultat'!C48","v":0},"/",{"$f":"'Indtast resultat'!D48","v":0}]
[{"$f":"'Indtast resultat'!A46","v":"Sønderborg Skyttekreds"},"I alt",{"$f":"'Indtast resultat'!C49","v":0},"/",{"$f":"'Indtast resultat'!D49","v":0}]
[{"$f":"'Indtast resultat'!A47","v":"DGI Sønderjylland"},null,"Retur til \"Indtast resultat\""]

{"sheet":"09","index":18,"n_rows":8,"n_cols":5,"rows_kept":8,"cut":false,"hidden":false,"merged":[]}
[{"$f":"'Indtast resultat'!A51","v":"Friskolen Østerlund 5-1"}]
["Navn","Skivenr","Point","/","x"]
[{"$f":"'Indtast resultat'!B51","v":"Madina M. Werner"},{"$f":"'Indtast resultat'!E51","v":135321},{"$f":"'Indtast resultat'!C51","v":0},"/",{"$f":"'Indtast resultat'!D51","v":0}]
[{"$f":"'Indtast resultat'!B52","v":"Aksel S. Jessen"},{"$f":"'Indtast resultat'!E52","v":135331},{"$f":"'Indtast resultat'!C52","v":0},"/",{"$f":"'Indtast resultat'!D52","v":0}]
[{"$f":"'Indtast resultat'!B53","v":"Dicte W. Jørgensen"},{"$f":"'Indtast resultat'!E53","v":135341},{"$f":"'Indtast resultat'!C53","v":0},"/",{"$f":"'Indtast resultat'!D53","v":0}]
[{"$f":"'Indtast resultat'!B54","v":"Ida M. Lorenzen"},{"$f":"'Indtast resultat'!E54","v":135351},{"$f":"'Indtast resultat'!C54","v":0},"/",{"$f":"'Indtast resultat'!D54","v":0}]
[{"$f":"'Indtast resultat'!A52","v":"Midtals Skytteforening"},"I alt",{"$f":"'Indtast resultat'!C55","v":0},"/",{"$f":"'Indtast resultat'!D55","v":0}]
[{"$f":"'Indtast resultat'!A53","v":"DGI Sønderjylland"},null,"Retur til \"Indtast resultat\""]

{"sheet":"10","index":19,"n_rows":8,"n_cols":5,"rows_kept":8,"cut":false,"hidden":false,"merged":[]}
[{"$f":"'Indtast resultat'!A57","v":"Humlehøj Skolen 5A-1"}]
["Navn","Skivenr","Point","/","x"]
[{"$f":"'Indtast resultat'!B57","v":"Josefine Frisk Christensen"},{"$f":"'Indtast resultat'!E57","v":135361},{"$f":"'Indtast resultat'!C57","v":198},"/",{"$f":"'Indtast resultat'!D57","v":4}]
[{"$f":"'Indtast resultat'!B58","v":"Mathilde Uhrskov Lundgreen"},{"$f":"'Indtast resultat'!E58","v":135371},{"$f":"'Indtast resultat'!C58","v":184},"/",{"$f":"'Indtast resultat'!D58","v":2}]
[{"$f":"'Indtast resultat'!B59","v":"Camille Fick Johannsen"},{"$f":"'Indtast resultat'!E59","v":135381},{"$f":"'Indtast resultat'!C59","v":187},"/",{"$f":"'Indtast resultat'!D59","v":2}]
[{"$f":"'Indtast resultat'!B60","v":"Silas Loose Tinnesen"},{"$f":"'Indtast resultat'!E60","v":135391},{"$f":"'Indtast resultat'!C60","v":186},"/",{"$f":"'Indtast resultat'!D60","v":2}]
[{"$f":"'Indtast resultat'!A58","v":"Sønderborg Skyttekreds"},"I alt",{"$f":"'Indtast resultat'!C61","v":755},"/",{"$f":"'Indtast resultat'!D61","v":10}]
[{"$f":"'Indtast resultat'!A59","v":"DGI Sønderjylland"},null,"Retur til \"Indtast resultat\""]

{"sheet":"11","index":20,"n_rows":8,"n_cols":5,"rows_kept":8,"cut":false,"hidden":false,"merged":[]}
[{"$f":"'Indtast resultat'!A63","v":"Ahlmann Skolen 5A-1"}]
["Navn","Skivenr","Point","/","x"]
[{"$f":"'Indtast resultat'!B63","v":"Johanna Bjerrum"},{"$f":"'Indtast resultat'!E63","v":135401},{"$f":"'Indtast resultat'!C63","v":187},"/",{"$f":"'Indtast resultat'!D63","v":2}]
[{"$f":"'Indtast resultat'!B64","v":"Mimi Lyngkilde Clausen"},{"$f":"'Indtast resultat'!E64","v":135411},{"$f":"'Indtast resultat'!C64","v":185},"/",{"$f":"'Indtast resultat'!D64","v":4}]
[{"$f":"'Indtast resultat'!B65","v":"Viola Seeberg Haurum"},{"$f":"'Indtast resultat'!E65","v":135421},{"$f":"'Indtast resultat'!C65","v":181},"/",{"$f":"'Indtast resultat'!D65","v":1}]
[{"$f":"'Indtast resultat'!B66","v":"Mille Jozefowicz"},{"$f":"'Indtast resultat'!E66","v":135431},{"$f":"'Indtast resultat'!C66","v":182},"/",{"$f":"'Indtast resultat'!D66","v":1}]
[{"$f":"'Indtast resultat'!A64","v":"Sønderborg Skyttekreds"},"I alt",{"$f":"'Indtast resultat'!C67","v":735},"/",{"$f":"'Indtast resultat'!D67","v":8}]
[{"$f":"'Indtast resultat'!A65","v":"DGI Sønderjylland"},null,"Retur til \"Indtast resultat\""]

{"sheet":"12","index":21,"n_rows":8,"n_cols":5,"rows_kept":8,"cut":false,"hidden":false,"merged":[]}
[{"$f":"'Indtast resultat'!A69","v":"Augustenborg Skole 5B-2"}]
["Navn","Skivenr","Point","/","x"]
[{"$f":"'Indtast resultat'!B69","v":"Loke Uduak Skov Christensen"},{"$f":"'Indtast resultat'!E69","v":135441},{"$f":"'Indtast resultat'!C69","v":190},"/",{"$f":"'Indtast resultat'!D69","v":6}]
[{"$f":"'Indtast resultat'!B70","v":"Maja Vonsild Jensen"},{"$f":"'Indtast resultat'!E70","v":135451},{"$f":"'Indtast resultat'!C70","v":188},"/",{"$f":"'Indtast resultat'!D70","v":4}]
[{"$f":"'Indtast resultat'!B71","v":"Nicolai Hadberg"},{"$f":"'Indtast resultat'!E71","v":135461},{"$f":"'Indtast resultat'!C71","v":187},"/",{"$f":"'Indtast resultat'!D71","v":0}]
[{"$f":"'Indtast resultat'!B72","v":"Louiza Kaluzny-Jarrov"},{"$f":"'Indtast resultat'!E72","v":135471},{"$f":"'Indtast resultat'!C72","v":186},"/",{"$f":"'Indtast resultat'!D72","v":1}]
[{"$f":"'Indtast resultat'!A70","v":"Midtals Skytteforening"},"I alt",{"$f":"'Indtast resultat'!C73","v":751},"/",{"$f":"'Indtast resultat'!D73","v":11}]
[{"$f":"'Indtast resultat'!A71","v":"DGI Sønderjylland"},null,"Retur til \"Indtast resultat\""]

{"sheet":"13","index":22,"n_rows":8,"n_cols":5,"rows_kept":8,"cut":false,"hidden":false,"merged":[]}
[{"$f":"'Indtast resultat'!A75","v":"Gråsten Skole 5B-1"}]
["Navn","Skivenr","Point","/","x"]
[{"$f":"'Indtast resultat'!B75","v":"Mille Laus Vollertsen"},{"$f":"'Indtast resultat'!E75","v":135481},{"$f":"'Indtast resultat'!C75","v":187},"/",{"$f":"'Indtast resultat'!D75","v":4}]
[{"$f":"'Indtast resultat'!B76","v":"Patrick Good Hollænder"},{"$f":"'Indtast resultat'!E76","v":135491},{"$f":"'Indtast resultat'!C76","v":183},"/",{"$f":"'Indtast resultat'!D76","v":1}]
[{"$f":"'Indtast resultat'!B77","v":"Nanna Brogaard Roth"},{"$f":"'Indtast resultat'!E77","v":135501},{"$f":"'Indtast resultat'!C77","v":191},"/",{"$f":"'Indtast resultat'!D77","v":1}]
[{"$f":"'Indtast resultat'!B78","v":"Lars Heissel"},{"$f":"'Indtast resultat'!E78","v":135511},{"$f":"'Indtast resultat'!C78","v":187},"/",{"$f":"'Indtast resultat'!D78","v":2}]
[{"$f":"'Indtast resultat'!A76","v":"Gråsten Skytteforening"},"I alt",{"$f":"'Indtast resultat'!C79","v":748},"/",{"$f":"'Indtast resultat'!D79","v":8}]
[{"$f":"'Indtast resultat'!A77","v":"DGI Sønderjylland"},null,"Retur til \"Indtast resultat\""]

{"sheet":"14","index":23,"n_rows":8,"n_cols":5,"rows_kept":8,"cut":false,"hidden":false,"merged":[]}
[{"$f":"'Indtast resultat'!A81","v":"Dybbøl Skolen 5D-1"}]
["Navn","Skivenr","Point","/","x"]
[{"$f":"'Indtast resultat'!B81","v":"Liv Gregersen Elmer"},{"$f":"'Indtast resultat'!E81","v":135521},{"$f":"'Indtast resultat'!C81","v":181},"/",{"$f":"'Indtast resultat'!D81","v":1}]
[{"$f":"'Indtast resultat'!B82","v":"Jones Hansen"},{"$f":"'Indtast resultat'!E82","v":135531},{"$f":"'Indtast resultat'!C82","v":189},"/",{"$f":"'Indtast resultat'!D82","v":1}]
[{"$f":"'Indtast resultat'!B83","v":"Frida Kou Jensen"},{"$f":"'Indtast resultat'!E83","v":135541},{"$f":"'Indtast resultat'!C83","v":186},"/",{"$f":"'Indtast resultat'!D83","v":2}]
[{"$f":"'Indtast resultat'!B84","v":"Victoria Benedikte Grum Kjærgaard"},{"$f":"'Indtast resultat'!E84","v":135551},{"$f":"'Indtast resultat'!C84","v":189},"/",{"$f":"'Indtast resultat'!D84","v":3}]
[{"$f":"'Indtast resultat'!A82","v":"Sønderborg Skyttekreds"},"I alt",{"$f":"'Indtast resultat'!C85","v":745},"/",{"$f":"'Indtast resultat'!D85","v":7}]
[{"$f":"'Indtast resultat'!A83","v":"DGI Sønderjylland"},null,"Retur til \"Indtast resultat\""]

{"sheet":"15","index":24,"n_rows":8,"n_cols":5,"rows_kept":8,"cut":false,"hidden":false,"merged":[]}
[{"$f":"'Indtast resultat'!A87","v":"Oksbøl Friskole 5M-1"}]
["Navn","Skivenr","Point","/","x"]
[{"$f":"'Indtast resultat'!B87","v":"Celine Jungquist Christensen"},{"$f":"'Indtast resultat'!E87","v":135561},{"$f":"'Indtast resultat'!C87","v":186},"/",{"$f":"'Indtast resultat'!D87","v":0}]
[{"$f":"'Indtast resultat'!B88","v":"Laura Kjærgaard"},{"$f":"'Indtast resultat'!E88","v":135571},{"$f":"'Indtast resultat'!C88","v":180},"/",{"$f":"'Indtast resultat'!D88","v":1}]
[{"$f":"'Indtast resultat'!B89","v":"Sascha Møller Abrahamsen"},{"$f":"'Indtast resultat'!E89","v":135581},{"$f":"'Indtast resultat'!C89","v":187},"/",{"$f":"'Indtast resultat'!D89","v":0}]
[{"$f":"'Indtast resultat'!B90","v":"Layla Clausen"},{"$f":"'Indtast resultat'!E90","v":135591},{"$f":"'Indtast resultat'!C90","v":192},"/",{"$f":"'Indtast resultat'!D90","v":2}]
[{"$f":"'Indtast resultat'!A88","v":"Nordals Skyttekreds"},"I alt",{"$f":"'Indtast resultat'!C91","v":745},"/",{"$f":"'Indtast resultat'!D91","v":3}]
[{"$f":"'Indtast resultat'!A89","v":"DGI Sønderjylland"},null,"Retur til \"Indtast resultat\""]

{"sheet":"16","index":25,"n_rows":8,"n_cols":5,"rows_kept":8,"cut":false,"hidden":false,"merged":[]}
[{"$f":"'Indtast resultat'!A93","v":"Augustenborg Skole 5A-1"}]
["Navn","Skivenr","Point","/","x"]
[{"$f":"'Indtast resultat'!B93","v":"Amanda Angelica Hansen"},{"$f":"'Indtast resultat'!E93","v":135601},{"$f":"'Indtast resultat'!C93","v":191},"/",{"$f":"'Indtast resultat'!D93","v":2}]
[{"$f":"'Indtast resultat'!B94","v":"Lea Raabe Jæger"},{"$f":"'Indtast resultat'!E94","v":135611},{"$f":"'Indtast resultat'!C94","v":186},"/",{"$f":"'Indtast resultat'!D94","v":1}]
[{"$f":"'Indtast resultat'!B95","v":"Sophia Rahr Semmelmann"},{"$f":"'Indtast resultat'!E95","v":135621},{"$f":"'Indtast resultat'!C95","v":194},"/",{"$f":"'Indtast resultat'!D95","v":7}]
[{"$f":"'Indtast resultat'!B96","v":"Sofie Kinastovski Wolff"},{"$f":"'Indtast resultat'!E96","v":135631},{"$f":"'Indtast resultat'!C96","v":191},"/",{"$f":"'Indtast resultat'!D96","v":4}]
[{"$f":"'Indtast resultat'!A94","v":"Midtals Skytteforening"},"I alt",{"$f":"'Indtast resultat'!C97","v":762},"/",{"$f":"'Indtast resultat'!D97","v":14}]
[{"$f":"'Indtast resultat'!A95","v":"DGI Sønderjylland"},null,"Retur til \"Indtast resultat\""]

{"sheet":"17","index":26,"n_rows":8,"n_cols":5,"rows_kept":8,"cut":false,"hidden":false,"merged":[]}
[{"$f":"'Indtast resultat'!A99","v":"Skærbæk Realskole 5A-1"}]
["Navn","Skivenr","Point","/","x"]
[{"$f":"'Indtast resultat'!B99","v":"Lasse Sørensen"},{"$f":"'Indtast resultat'!E99","v":135641},{"$f":"'Indtast resultat'!C99","v":183},"/",{"$f":"'Indtast resultat'!D99","v":0}]
[{"$f":"'Indtast resultat'!B100","v":"Casper Nissen"},{"$f":"'Indtast resultat'!E100","v":135651},{"$f":"'Indtast resultat'!C100","v":191},"/",{"$f":"'Indtast resultat'!D100","v":3}]
[{"$f":"'Indtast resultat'!B101","v":"Morten Vejrup"},{"$f":"'Indtast resultat'!E101","v":135661},{"$f":"'Indtast resultat'!C101","v":187},"/",{"$f":"'Indtast resultat'!D101","v":1}]
[{"$f":"'Indtast resultat'!B102","v":"Silke Petersen"},{"$f":"'Indtast resultat'!E102","v":135671},{"$f":"'Indtast resultat'!C102","v":195},"/",{"$f":"'Indtast resultat'!D102","v":3}]
[{"$f":"'Indtast resultat'!A100","v":"Sparta"},"I alt",{"$f":"'Indtast resultat'!C103","v":756},"/",{"$f":"'Indtast resultat'!D103","v":7}]
[{"$f":"'Indtast resultat'!A101","v":"DGI Sønderjylland"},null,"Retur til \"Indtast resultat\""]

{"sheet":"18","index":27,"n_rows":8,"n_cols":5,"rows_kept":8,"cut":false,"hidden":false,"merged":[]}
[{"$f":"'Indtast resultat'!A105","v":"Dybbøl Skolen 5C-1"}]
["Navn","Skivenr","Point","/","x"]
[{"$f":"'Indtast resultat'!B105","v":"Kathrine Holm Østergaard"},{"$f":"'Indtast resultat'!E105","v":135681},{"$f":"'Indtast resultat'!C105","v":186},"/",{"$f":"'Indtast resultat'!D105","v":3}]
[{"$f":"'Indtast resultat'!B106","v":"Said Mohammed Mosleh"},{"$f":"'Indtast resultat'!E106","v":135691},{"$f":"'Indtast resultat'!C106","v":180},"/",{"$f":"'Indtast resultat'!D106","v":1}]
[{"$f":"'Indtast resultat'!B107","v":"Eliza Anna Andreasen"},{"$f":"'Indtast resultat'!E107","v":135701},{"$f":"'Indtast resultat'!C107","v":189},"/",{"$f":"'Indtast resultat'!D107","v":1}]
[{"$f":"'Indtast resultat'!B108","v":"Sofia Lykkeø Enggaard"},{"$f":"'Indtast resultat'!E108","v":135711},{"$f":"'Indtast resultat'!C108","v":185},"/",{"$f":"'Indtast resultat'!D108","v":2}]
[{"$f":"'Indtast resultat'!A106","v":"Sønderborg Skyttekreds"},"I alt",{"$f":"'Indtast resultat'!C109","v":740},"/",{"$f":"'Indtast resultat'!D109","v":7}]
[{"$f":"'Indtast resultat'!A107","v":"DGI Sønderjylland"},null,"Retur til \"Indtast resultat\""]

{"sheet":"19","index":28,"n_rows":8,"n_cols":5,"rows_kept":8,"cut":false,"hidden":false,"merged":[]}
[{"$f":"'Indtast resultat'!A111","v":"Augustenborg Skole 5B-1"}]
["Navn","Skivenr","Point","/","x"]
[{"$f":"'Indtast resultat'!B111","v":"Emma Bramvel Blaudzun"},{"$f":"'Indtast resultat'!E111","v":135841},{"$f":"'Indtast resultat'!C111","v":185},"/",{"$f":"'Indtast resultat'!D111","v":3}]
[{"$f":"'Indtast resultat'!B112","v":"Lærke Bak"},{"$f":"'Indtast resultat'!E112","v":135851},{"$f":"'Indtast resultat'!C112","v":187},"/",{"$f":"'Indtast resultat'!D112","v":2}]
[{"$f":"'Indtast resultat'!B113","v":"Mathilde Plehn"},{"$f":"'Indtast resultat'!E113","v":135861},{"$f":"'Indtast resultat'!C113","v":191},"/",{"$f":"'Indtast resultat'!D113","v":4}]
[{"$f":"'Indtast resultat'!B114","v":"Silje Lindberg Lorenzen"},{"$f":"'Indtast resultat'!E114","v":135871},{"$f":"'Indtast resultat'!C114","v":190},"/",{"$f":"'Indtast resultat'!D114","v":4}]
[{"$f":"'Indtast resultat'!A112","v":"Midtals Skytteforening"},"I alt",{"$f":"'Indtast resultat'!C115","v":753},"/",{"$f":"'Indtast resultat'!D115","v":13}]
[{"$f":"'Indtast resultat'!A113","v":"DGI Sønderjylland"},null,"Retur til \"Indtast resultat\""]

{"sheet":"20","index":29,"n_rows":8,"n_cols":5,"rows_kept":8,"cut":false,"hidden":false,"merged":[]}
[{"$f":"'Indtast resultat'!A117","v":"Digeskolen 5H-1"}]
["Navn","Skivenr","Point","/","x"]
[{"$f":"'Indtast resultat'!B117","v":"Ida Marie Petersen"},{"$f":"'Indtast resultat'!E117","v":135881},{"$f":"'Indtast resultat'!C117","v":183},"/",{"$f":"'Indtast resultat'!D117","v":1}]
[{"$f":"'Indtast resultat'!B118","v":"Line Skovgaard"},{"$f":"'Indtast resultat'!E118","v":135891},{"$f":"'Indtast resultat'!C118","v":190},"/",{"$f":"'Indtast resultat'!D118","v":2}]
[{"$f":"'Indtast resultat'!B119","v":"Bertram Teglskov"},{"$f":"'Indtast resultat'!E119","v":135901},{"$f":"'Indtast resultat'!C119","v":188},"/",{"$f":"'Indtast resultat'!D119","v":3}]
[{"$f":"'Indtast resultat'!B120","v":"Rasmus Andresen"},{"$f":"'Indtast resultat'!E120","v":135911},{"$f":"'Indtast resultat'!C120","v":191},"/",{"$f":"'Indtast resultat'!D120","v":1}]
[{"$f":"'Indtast resultat'!A118","v":"Sparta"},"I alt",{"$f":"'Indtast resultat'!C121","v":752},"/",{"$f":"'Indtast resultat'!D121","v":7}]
[{"$f":"'Indtast resultat'!A119","v":"DGI Sønderjylland"},null,"Retur til \"Indtast resultat\""]

{"sheet":"21","index":30,"n_rows":8,"n_cols":5,"rows_kept":8,"cut":false,"hidden":false,"merged":[]}
[{"$f":"'Indtast resultat'!A123","v":"Gråsten Skole 5A-1"}]
["Navn","Skivenr","Point","/","x"]
[{"$f":"'Indtast resultat'!B123","v":"Marie Pedersen"},{"$f":"'Indtast resultat'!E123","v":135921},{"$f":"'Indtast resultat'!C123","v":194},"/",{"$f":"'Indtast resultat'!D123","v":5}]
[{"$f":"'Indtast resultat'!B124","v":"Philip Bossen"},{"$f":"'Indtast resultat'!E124","v":135931},{"$f":"'Indtast resultat'!C124","v":188},"/",{"$f":"'Indtast resultat'!D124","v":3}]
[{"$f":"'Indtast resultat'!B125","v":"Iben Nissen"},{"$f":"'Indtast resultat'!E125","v":135941},{"$f":"'Indtast resultat'!C125","v":187},"/",{"$f":"'Indtast resultat'!D125","v":2}]
[{"$f":"'Indtast resultat'!B126","v":"Nikola Malocha"},{"$f":"'Indtast resultat'!E126","v":135951},{"$f":"'Indtast resultat'!C126","v":180},"/",{"$f":"'Indtast resultat'!D126","v":4}]
[{"$f":"'Indtast resultat'!A124","v":"Gråsten Skytteforening"},"I alt",{"$f":"'Indtast resultat'!C127","v":749},"/",{"$f":"'Indtast resultat'!D127","v":14}]
[{"$f":"'Indtast resultat'!A125","v":"DGI Sønderjylland"},null,"Retur til \"Indtast resultat\""]

{"sheet":"22","index":31,"n_rows":8,"n_cols":5,"rows_kept":8,"cut":false,"hidden":false,"merged":[]}
[{"$f":"'Indtast resultat'!A129","v":"Skærbæk Distriksskole 5A-1"}]
["Navn","Skivenr","Point","/","x"]
[{"$f":"'Indtast resultat'!B129","v":"Oskar Jørgensen"},{"$f":"'Indtast resultat'!E129","v":135961},{"$f":"'Indtast resultat'!C129","v":182},"/",{"$f":"'Indtast resultat'!D129","v":2}]
[{"$f":"'Indtast resultat'!B130","v":"Mads Olesen"},{"$f":"'Indtast resultat'!E130","v":135971},{"$f":"'Indtast resultat'!C130","v":188},"/",{"$f":"'Indtast resultat'!D130","v":5}]
[{"$f":"'Indtast resultat'!B131","v":"Emil Thomasen"},{"$f":"'Indtast resultat'!E131","v":135981},{"$f":"'Indtast resultat'!C131","v":187},"/",{"$f":"'Indtast resultat'!D131","v":2}]
[{"$f":"'Indtast resultat'!B132","v":"Maja Petersen"},{"$f":"'Indtast resultat'!E132","v":135991},{"$f":"'Indtast resultat'!C132","v":196},"/",{"$f":"'Indtast resultat'!D132","v":5}]
[{"$f":"'Indtast resultat'!A130","v":"Sparta"},"I alt",{"$f":"'Indtast resultat'!C133","v":753},"/",{"$f":"'Indtast resultat'!D133","v":14}]
[{"$f":"'Indtast resultat'!A131","v":"DGI Sønderjylland"},null,"Retur til \"Indtast resultat\""]

{"sheet":"23","index":32,"n_rows":8,"n_cols":5,"rows_kept":8,"cut":false,"hidden":false,"merged":[]}
[{"$f":"'Indtast resultat'!A135","v":"Skole - Klasse - Hold"}]
["Navn","Skivenr","Point","/","x"]
[{"$f":"'Indtast resultat'!B135","v":"Elev 1"},{"$f":"'Indtast resultat'!E135","v":136001},{"$f":"'Indtast resultat'!C135","v":0},"/",{"$f":"'Indtast resultat'!D135","v":0}]
[{"$f":"'Indtast resultat'!B136","v":"Elev 2"},{"$f":"'Indtast resultat'!E136","v":136011},{"$f":"'Indtast resultat'!C136","v":0},"/",{"$f":"'Indtast resultat'!D136","v":0}]
[{"$f":"'Indtast resultat'!B137","v":"Elev 3"},{"$f":"'Indtast resultat'!E137","v":136021},{"$f":"'Indtast resultat'!C137","v":0},"/",{"$f":"'Indtast resultat'!D137","v":0}]
[{"$f":"'Indtast resultat'!B138","v":"Elev 4"},{"$f":"'Indtast resultat'!E138","v":136031},{"$f":"'Indtast resultat'!C138","v":0},"/",{"$f":"'Indtast resultat'!D138","v":0}]
[{"$f":"'Indtast resultat'!A136","v":"Forening"},"I alt",{"$f":"'Indtast resultat'!C139","v":0},"/",{"$f":"'Indtast resultat'!D139","v":0}]
[{"$f":"'Indtast resultat'!A137","v":"DGI Sønderjylland"},null,"Retur til \"Indtast resultat\""]

{"sheet":"24","index":33,"n_rows":8,"n_cols":5,"rows_kept":8,"cut":false,"hidden":false,"merged":[]}
[{"$f":"'Indtast resultat'!A141","v":"Skole - Klasse - Hold"}]
["Navn","Skivenr","Point","/","x"]
[{"$f":"'Indtast resultat'!B141","v":"Elev 1"},{"$f":"'Indtast resultat'!E141","v":136041},{"$f":"'Indtast resultat'!C141","v":0},"/",{"$f":"'Indtast resultat'!D141","v":0}]
[{"$f":"'Indtast resultat'!B142","v":"Elev 2"},{"$f":"'Indtast resultat'!E142","v":136051},{"$f":"'Indtast resultat'!C142","v":0},"/",{"$f":"'Indtast resultat'!D142","v":0}]
[{"$f":"'Indtast resultat'!B143","v":"Elev 3"},{"$f":"'Indtast resultat'!E143","v":136061},{"$f":"'Indtast resultat'!C143","v":0},"/",{"$f":"'Indtast resultat'!D143","v":0}]
[{"$f":"'Indtast resultat'!B144","v":"Elev 4"},{"$f":"'Indtast resultat'!E144","v":136071},{"$f":"'Indtast resultat'!C144","v":0},"/",{"$f":"'Indtast resultat'!D144","v":0}]
[{"$f":"'Indtast resultat'!A142","v":"Forening"},"I alt",{"$f":"'Indtast resultat'!C145","v":0},"/",{"$f":"'Indtast resultat'!D145","v":0}]
[{"$f":"'Indtast resultat'!A143","v":"DGI Sønderjylland"},null,"Retur til \"Indtast resultat\""]

{"sheet":"25","index":34,"n_rows":8,"n_cols":5,"rows_kept":8,"cut":false,"hidden":false,"merged":[]}
[{"$f":"'Indtast resultat'!A147","v":"Skole - Klasse - Hold"}]
["Navn","Skivenr","Point","/","x"]
[{"$f":"'Indtast resultat'!B147","v":"Elev 1"},{"$f":"'Indtast resultat'!E147","v":136081},{"$f":"'Indtast resultat'!C147","v":0},"/",{"$f":"'Indtast resultat'!D147","v":0}]
[{"$f":"'Indtast resultat'!B148","v":"Elev 2"},{"$f":"'Indtast resultat'!E148","v":136091},{"$f":"'Indtast resultat'!C148","v":0},"/",{"$f":"'Indtast resultat'!D148","v":0}]
[{"$f":"'Indtast resultat'!B149","v":"Elev 3"},{"$f":"'Indtast resultat'!E149","v":136101},{"$f":"'Indtast resultat'!C149","v":0},"/",{"$f":"'Indtast resultat'!D149","v":0}]
[{"$f":"'Indtast resultat'!B150","v":"Elev 4"},{"$f":"'Indtast resultat'!E150","v":136111},{"$f":"'Indtast resultat'!C150","v":0},"/",{"$f":"'Indtast resultat'!D150","v":0}]
[{"$f":"'Indtast resultat'!A148","v":"Forening"},"I alt",{"$f":"'Indtast resultat'!C151","v":0},"/",{"$f":"'Indtast resultat'!D151","v":0}]
[{"$f":"'Indtast resultat'!A149","v":"DGI Sønderjylland"},null,"Retur til \"Indtast resultat\""]

{"sheet":"26","index":35,"n_rows":8,"n_cols":5,"rows_kept":8,"cut":false,"hidden":false,"merged":[]}
[{"$f":"'Indtast resultat'!A153","v":"Skole - Klasse - Hold"}]
["Navn","Skivenr","Point","/","x"]
[{"$f":"'Indtast resultat'!B153","v":"Elev 1"},{"$f":"'Indtast resultat'!E153","v":136121},{"$f":"'Indtast resultat'!C153","v":0},"/",{"$f":"'Indtast resultat'!D153","v":0}]
[{"$f":"'Indtast resultat'!B154","v":"Elev 2"},{"$f":"'Indtast resultat'!E154","v":136131},{"$f":"'Indtast resultat'!C154","v":0},"/",{"$f":"'Indtast resultat'!D154","v":0}]
[{"$f":"'Indtast resultat'!B155","v":"Elev 3"},{"$f":"'Indtast resultat'!E155","v":136141},{"$f":"'Indtast resultat'!C155","v":0},"/",{"$f":"'Indtast resultat'!D155","v":0}]
[{"$f":"'Indtast resultat'!B156","v":"Elev 4"},{"$f":"'Indtast resultat'!E156","v":136151},{"$f":"'Indtast resultat'!C156","v":0},"/",{"$f":"'Indtast resultat'!D156","v":0}]
[{"$f":"'Indtast resultat'!A154","v":"Forening"},"I alt",{"$f":"'Indtast resultat'!C157","v":0},"/",{"$f":"'Indtast resultat'!D157","v":0}]
[{"$f":"'Indtast resultat'!A155","v":"DGI Sønderjylland"},null,"Retur til \"Indtast resultat\""]

{"sheet":"27","index":36,"n_rows":8,"n_cols":5,"rows_kept":8,"cut":false,"hidden":false,"merged":[]}
[{"$f":"'Indtast resultat'!A159","v":"Skole - Klasse - Hold"}]
["Navn","Skivenr","Point","/","x"]
[{"$f":"'Indtast resultat'!B159","v":"Elev 1"},{"$f":"'Indtast resultat'!E159","v":136161},{"$f":"'Indtast resultat'!C159","v":0},"/",{"$f":"'Indtast resultat'!D159","v":0}]
[{"$f":"'Indtast resultat'!B160","v":"Elev 2"},{"$f":"'Indtast resultat'!E160","v":136171},{"$f":"'Indtast resultat'!C160","v":0},"/",{"$f":"'Indtast resultat'!D160","v":0}]
[{"$f":"'Indtast resultat'!B161","v":"Elev 3"},{"$f":"'Indtast resultat'!E161","v":136181},{"$f":"'Indtast resultat'!C161","v":0},"/",{"$f":"'Indtast resultat'!D161","v":0}]
[{"$f":"'Indtast resultat'!B162","v":"Elev 4"},{"$f":"'Indtast resultat'!E162","v":136191},{"$f":"'Indtast resultat'!C162","v":0},"/",{"$f":"'Indtast resultat'!D162","v":0}]
[{"$f":"'Indtast resultat'!A160","v":"Forening"},"I alt",{"$f":"'Indtast resultat'!C163","v":0},"/",{"$f":"'Indtast resultat'!D163","v":0}]
[{"$f":"'Indtast resultat'!A161","v":"DGI Sønderjylland"},null,"Retur til \"Indtast resultat\""]

{"sheet":"28","index":37,"n_rows":8,"n_cols":5,"rows_kept":8,"cut":false,"hidden":false,"merged":[]}
[{"$f":"'Indtast resultat'!A165","v":"Skole - Klasse - Hold"}]
["Navn","Skivenr","Point","/","x"]
[{"$f":"'Indtast resultat'!B165","v":"Elev 1"},{"$f":"'Indtast resultat'!E165","v":136201},{"$f":"'Indtast resultat'!C165","v":0},"/",{"$f":"'Indtast resultat'!D165","v":0}]
[{"$f":"'Indtast resultat'!B166","v":"Elev 2"},{"$f":"'Indtast resultat'!E166","v":136211},{"$f":"'Indtast resultat'!C166","v":0},"/",{"$f":"'Indtast resultat'!D166","v":0}]
[{"$f":"'Indtast resultat'!B167","v":"Elev 3"},{"$f":"'Indtast resultat'!E167","v":136221},{"$f":"'Indtast resultat'!C167","v":0},"/",{"$f":"'Indtast resultat'!D167","v":0}]
[{"$f":"'Indtast resultat'!B168","v":"Elev 4"},{"$f":"'Indtast resultat'!E168","v":136231},{"$f":"'Indtast resultat'!C168","v":0},"/",{"$f":"'Indtast resultat'!D168","v":0}]
[{"$f":"'Indtast resultat'!A166","v":"Forening"},"I alt",{"$f":"'Indtast resultat'!C169","v":0},"/",{"$f":"'Indtast resultat'!D169","v":0}]
[{"$f":"'Indtast resultat'!A167","v":"DGI Sønderjylland"},null,"Retur til \"Indtast resultat\""]

{"sheet":"29","index":38,"n_rows":8,"n_cols":5,"rows_kept":8,"cut":false,"hidden":false,"merged":[]}
[{"$f":"'Indtast resultat'!A171","v":"Skole - Klasse - Hold"}]
["Navn","Skivenr","Point","/","x"]
[{"$f":"'Indtast resultat'!B171","v":"Elev 1"},{"$f":"'Indtast resultat'!E171","v":136241},{"$f":"'Indtast resultat'!C171","v":0},"/",{"$f":"'Indtast resultat'!D171","v":0}]
[{"$f":"'Indtast resultat'!B172","v":"Elev 2"},{"$f":"'Indtast resultat'!E172","v":136251},{"$f":"'Indtast resultat'!C172","v":0},"/",{"$f":"'Indtast resultat'!D172","v":0}]
[{"$f":"'Indtast resultat'!B173","v":"Elev 3"},{"$f":"'Indtast resultat'!E173","v":136261},{"$f":"'Indtast resultat'!C173","v":0},"/",{"$f":"'Indtast resultat'!D173","v":0}]
[{"$f":"'Indtast resultat'!B174","v":"Elev 4"},{"$f":"'Indtast resultat'!E174","v":136271},{"$f":"'Indtast resultat'!C174","v":0},"/",{"$f":"'Indtast resultat'!D174","v":0}]
[{"$f":"'Indtast resultat'!A172","v":"Forening"},"I alt",{"$f":"'Indtast resultat'!C175","v":0},"/",{"$f":"'Indtast resultat'!D175","v":0}]
[{"$f":"'Indtast resultat'!A173","v":"DGI Sønderjylland"},null,"Retur til \"Indtast resultat\""]

{"sheet":"30","index":39,"n_rows":8,"n_cols":5,"rows_kept":8,"cut":false,"hidden":false,"merged":[]}
[{"$f":"'Indtast resultat'!A177","v":"Skole - Klasse - Hold"}]
["Navn","Skivenr","Point","/","x"]
[{"$f":"'Indtast resultat'!B177","v":"Elev 1"},{"$f":"'Indtast resultat'!E177","v":136281},{"$f":"'Indtast resultat'!C177","v":0},"/",{"$f":"'Indtast resultat'!D177","v":0}]
[{"$f":"'Indtast resultat'!B178","v":"Elev 2"},{"$f":"'Indtast resultat'!E178","v":136291},{"$f":"'Indtast resultat'!C178","v":0},"/",{"$f":"'Indtast resultat'!D178","v":0}]
[{"$f":"'Indtast resultat'!B179","v":"Elev 3"},{"$f":"'Indtast resultat'!E179","v":136301},{"$f":"'Indtast resultat'!C179","v":0},"/",{"$f":"'Indtast resultat'!D179","v":0}]
[{"$f":"'Indtast resultat'!B180","v":"Elev 4"},{"$f":"'Indtast resultat'!E180","v":136311},{"$f":"'Indtast resultat'!C180","v":0},"/",{"$f":"'Indtast resultat'!D180","v":0}]
[{"$f":"'Indtast resultat'!A178","v":"Forening"},"I alt",{"$f":"'Indtast resultat'!C181","v":0},"/",{"$f":"'Indtast resultat'!D181","v":0}]
[{"$f":"'Indtast resultat'!A179","v":"DGI Sønderjylland"},null,"Retur til \"Indtast resultat\""]

{"sheet":"31","index":40,"n_rows":8,"n_cols":5,"rows_kept":8,"cut":false,"hidden":false,"merged":[]}
[{"$f":"'Indtast resultat'!A183","v":"Skole - Klasse - Hold"}]
["Navn","Skivenr","Point","/","x"]
[{"$f":"'Indtast resultat'!B183","v":"Elev 1"},{"$f":"'Indtast resultat'!E183","v":136321},{"$f":"'Indtast resultat'!C183","v":0},"/",{"$f":"'Indtast resultat'!D183","v":0}]
[{"$f":"'Indtast resultat'!B184","v":"Elev 2"},{"$f":"'Indtast resultat'!E184","v":136331},{"$f":"'Indtast resultat'!C184","v":0},"/",{"$f":"'Indtast resultat'!D184","v":0}]
[{"$f":"'Indtast resultat'!B185","v":"Elev 3"},{"$f":"'Indtast resultat'!E185","v":136341},{"$f":"'Indtast resultat'!C185","v":0},"/",{"$f":"'Indtast resultat'!D185","v":0}]
[{"$f":"'Indtast resultat'!B186","v":"Elev 4"},{"$f":"'Indtast resultat'!E186","v":136351},{"$f":"'Indtast resultat'!C186","v":0},"/",{"$f":"'Indtast resultat'!D186","v":0}]
[{"$f":"'Indtast resultat'!A184","v":"Forening"},"I alt",{"$f":"'Indtast resultat'!C187","v":0},"/",{"$f":"'Indtast resultat'!D187","v":0}]
[{"$f":"'Indtast resultat'!A185","v":"DGI Sønderjylland"},null,"Retur til \"Indtast resultat\""]

{"sheet":"32","index":41,"n_rows":8,"n_cols":5,"rows_kept":8,"cut":false,"hidden":false,"merged":[]}
[{"$f":"'Indtast resultat'!A189","v":"Skole - Klasse - Hold"}]
["Navn","Skivenr","Point","/","x"]
[{"$f":"'Indtast resultat'!B189","v":"Elev 1"},{"$f":"'Indtast resultat'!E189","v":136361},{"$f":"'Indtast resultat'!C189","v":0},"/",{"$f":"'Indtast resultat'!D189","v":0}]
[{"$f":"'Indtast resultat'!B190","v":"Elev 2"},{"$f":"'Indtast resultat'!E190","v":136371},{"$f":"'Indtast resultat'!C190","v":0},"/",{"$f":"'Indtast resultat'!D190","v":0}]
[{"$f":"'Indtast resultat'!B191","v":"Elev 3"},{"$f":"'Indtast resultat'!E191","v":136381},{"$f":"'Indtast resultat'!C191","v":0},"/",{"$f":"'Indtast resultat'!D191","v":0}]
[{"$f":"'Indtast resultat'!B192","v":"Elev 4"},{"$f":"'Indtast resultat'!E192","v":136391},{"$f":"'Indtast resultat'!C192","v":0},"/",{"$f":"'Indtast resultat'!D192","v":0}]
[{"$f":"'Indtast resultat'!A190","v":"Forening"},"I alt",{"$f":"'Indtast resultat'!C193","v":0},"/",{"$f":"'Indtast resultat'!D193","v":0}]
[{"$f":"'Indtast resultat'!A191","v":"DGI Sønderjylland"},null,"Retur til \"Indtast resultat\""]

{"sheet":"33","index":42,"n_rows":8,"n_cols":5,"rows_kept":8,"cut":false,"hidden":false,"merged":[]}
[{"$f":"'Indtast resultat'!A195","v":"Skole - Klasse - Hold"}]
["Navn","Skivenr","Point","/","x"]
[{"$f":"'Indtast resultat'!B195","v":"Elev 1"},{"$f":"'Indtast resultat'!E195","v":136401},{"$f":"'Indtast resultat'!C195","v":0},"/",{"$f":"'Indtast resultat'!D195","v":0}]
[{"$f":"'Indtast resultat'!B196","v":"Elev 2"},{"$f":"'Indtast resultat'!E196","v":136411},{"$f":"'Indtast resultat'!C196","v":0},"/",{"$f":"'Indtast resultat'!D196","v":0}]
[{"$f":"'Indtast resultat'!B197","v":"Elev 3"},{"$f":"'Indtast resultat'!E197","v":136421},{"$f":"'Indtast resultat'!C197","v":0},"/",{"$f":"'Indtast resultat'!D197","v":0}]
[{"$f":"'Indtast resultat'!B198","v":"Elev 4"},{"$f":"'Indtast resultat'!E198","v":136431},{"$f":"'Indtast resultat'!C198","v":0},"/",{"$f":"'Indtast resultat'!D198","v":0}]
[{"$f":"'Indtast resultat'!A196","v":"Forening"},"I alt",{"$f":"'Indtast resultat'!C199","v":0},"/",{"$f":"'Indtast resultat'!D199","v":0}]
[{"$f":"'Indtast resultat'!A197","v":"DGI Sønderjylland"},null,"Retur til \"Indtast resultat\""]

{"sheet":"34","index":43,"n_rows":8,"n_cols":5,"rows_kept":8,"cut":false,"hidden":false,"merged":[]}
[{"$f":"'Indtast resultat'!A201","v":"Skole - Klasse - Hold"}]
["Navn","Skivenr","Point","/","x"]
[{"$f":"'Indtast resultat'!B201","v":"Elev 1"},{"$f":"'Indtast resultat'!E201","v":136441},{"$f":"'Indtast resultat'!C201","v":0},"/",{"$f":"'Indtast resultat'!D201","v":0}]
[{"$f":"'Indtast resultat'!B202","v":"Elev 2"},{"$f":"'Indtast resultat'!E202","v":136451},{"$f":"'Indtast resultat'!C202","v":0},"/",{"$f":"'Indtast resultat'!D202","v":0}]
[{"$f":"'Indtast resultat'!B203","v":"Elev 3"},{"$f":"'Indtast resultat'!E203","v":136461},{"$f":"'Indtast resultat'!C203","v":0},"/",{"$f":"'Indtast resultat'!D203","v":0}]
[{"$f":"'Indtast resultat'!B204","v":"Elev 4"},{"$f":"'Indtast resultat'!E204","v":136471},{"$f":"'Indtast resultat'!C204","v":0},"/",{"$f":"'Indtast resultat'!D204","v":0}]
[{"$f":"'Indtast resultat'!A202","v":"Forening"},"I alt",{"$f":"'Indtast resultat'!C205","v":0},"/",{"$f":"'Indtast resultat'!D205","v":0}]
[{"$f":"'Indtast resultat'!A203","v":"DGI Sønderjylland"},null,"Retur til \"Indtast resultat\""]

{"sheet":"35","index":44,"n_rows":8,"n_cols":5,"rows_kept":8,"cut":false,"hidden":false,"merged":[]}
[{"$f":"'Indtast resultat'!A207","v":0}]
["Navn","Skivenr","Point","/","x"]
[{"$f":"'Indtast resultat'!B207","v":0},{"$f":"'Indtast resultat'!E207","v":0},{"$f":"'Indtast resultat'!C207","v":0},"/",{"$f":"'Indtast resultat'!D207","v":0}]
[{"$f":"'Indtast resultat'!B208","v":0},{"$f":"'Indtast resultat'!E208","v":0},{"$f":"'Indtast resultat'!C208","v":0},"/",{"$f":"'Indtast resultat'!D208","v":0}]
[{"$f":"'Indtast resultat'!B209","v":0},{"$f":"'Indtast resultat'!E209","v":0},{"$f":"'Indtast resultat'!C209","v":0},"/",{"$f":"'Indtast resultat'!D209","v":0}]
[{"$f":"'Indtast resultat'!B210","v":0},{"$f":"'Indtast resultat'!E210","v":0},{"$f":"'Indtast resultat'!C210","v":0},"/",{"$f":"'Indtast resultat'!D210","v":0}]
[{"$f":"'Indtast resultat'!A208","v":0},"I alt",{"$f":"'Indtast resultat'!C211","v":0},"/",{"$f":"'Indtast resultat'!D211","v":0}]
[{"$f":"'Indtast resultat'!A209","v":0},null,"Retur til \"Indtast resultat\""]

{"sheet":"old2new","index":45,"n_rows":204,"n_cols":4,"rows_kept":204,"cut":false,"hidden":true,"merged":[]}
["Skole/hold (1)","Navn","Point","x"]
["Kongerslev Skole - 5a - 3","Marie Guldbæk Larsen",189,4]
["Mou & Omegens Skytteforening","Rasmus Nielsen",193,6]
["DGI Nordjylland","Ida Rosenkilde Sloth",192,3]
["Christian Schou","Lasse Kjærsgaard Jensen",189,0]
["oasen@schou.mail.dk"]
["Skole/hold (2)","Navn","Point","x"]
["Vester Hassing Skole - 5a - 1","Niels Taunsig Juulsgaard",192,6]
["Vester Hassing Skytteforening","Johanne Ringgren Axelsen",192,7]
["DGI Nordjylland","Lea Østergaard Larsen",185,2]
["Torben Klit Andersen","Frida Bach Nielsen",189,3]
["tka.skytten@outlook.com"]
["Skole/hold (3)","Navn","Point","x"]
["Kongerslev Skole - 5a - 2","Naima Christensen",186,1]
["Mou & Omegens Skytteforening","Emilie S. Andersen",193,4]
["DGI Nordjylland","Jonas Gregersen",196,6]
["Christian Schou","Josefine Pedersen",186,1]
["oasen@schou.mail.dk"]
["Skole/hold (4)","Navn","Point","x"]
["Højmarkskole - 5a - 1","Tobias Laursen",188,1]
["Højmark Skytteforening","Jeppe Agger",189,4]
["DGI Vestjylland","Johanne Pedersen",189,0]
["Holger Kold","Sarah Laursen",190,4]
["koldholger@gmail.com"]
["Skole/hold (5)","Navn","Point","x"]
["Stauning Skole - 5a - 1","Andreas Andresen",194,4]
["Skjern Skytteforening","Jeppe Aarup",191,3]
["DGI Vestjylland","Noah Agerbo",192,4]
["Birthe Vinther","Victoria Ebbesen",191,5]
["bev@skjern-net.dk"]
["Skole/hold (6)","Navn","Point","x"]
["Ringkøbing Skole - 5b - 1","Malua Bøgel Pedersen",185,2]
["Ringkøbing & Omegns Firmaidræt","Solomiia Khamyha",189,2]
["DGI Vestjylland","Benedikte Fisker",193,6]
["Jan Thorsted","Noah T. Vedsted",187,0]
["jan_t@sport.dk"]
["Skole/hold (7)","Navn","Point","x"]
["Ulbjerg Skole - 5a - 1","Sissel Præstgaard Madsen",193,3]
["Ulbjerg Skytteforening","Rikke Mai Stigsen Bech",194,1]
["DGI Midtjylland","Oliver Møller Trans",199,11]
["Ulla Rasmussen","Frederik Gloggengiehser",187,1]
["ulras@mail.dk"]
["Skole/hold (8)","Navn","Point","x"]
["Arnborg Skole - 5a - 1","Sarah Hamborg",189,3]
["Arnborg IF´s Skytteafdeling","Malthe Ottesen",191,2]
["DGI Midtjylland","Terese Kolster",189,2]
["Christine Grgersen","Frederik Dyrlund",174,0]
["gregersen2@mail.dk"]
["Skole/hold (9)","Navn","Point","x"]
["Frisholm Skole - 5a - 1","Simon Graversgaard Christensen",190,2]
["Them Skytteforening","Tobias Frank",190,2]
["DGI Midtjylland","Alberte Olesen",185,2]
["Jens Kjær","Benjamin Carlsen",193,2]
["lisbeth.kjaer@jubii.dk"]
["Skole/hold (10)","Navn","Point","x"]
["Onsbjerg Lilleskole - 5a - 1","Sinuhe Mondrup",197,5]
["Samsø Skytteforening","Friis Wiese",193,4]
["DGI Østjylland","Isabella Jensen",194,5]
["Jenny Bissø","Freja Vinter Jensen",189,1]
["dalen6@samsoe.com"]
["Skole/hold (11)","Navn","Point","x"]
["Samsø Skole - 5a - 1","Benjamin Frisk",195,6]
["Samsø Skytteforening","Frederik Vilhelmsen",193,5]
["DGI Østjylland","Sofus B. Jørgensen",195,6]
["Jenny Bissø","Lukas Jensen",189,2]
["dalen6@samsoe.com"]
["Skole/hold (12)","Navn","Point","x"]
["Samsø Friskole - 5a - 1","Mikael Holm",190,3]
["Samsø Skytteforening","Liv Petersen",195,4]
["DGI Østjylland","Niels Kjeldahl",185,2]
["Jenny Bissø","Villads Larsen",192,1]
["dalen6@samsoe.com"]
["Skole/hold (13)","Navn","Point","x"]
["Ullerup Bæk skolen afd. Skolesvinget - 5 - 1","Asger G. Jensen",198,8]
["Bredstrup Pjedsted Skytteforening","Felix H. Storm",191,5]
["DGI Sydøstjylland","Freja K. Andersen",191,4]
["Kurt Overgaard","Laura L. Jensen",187,3]
["elbokrogen9@gmail.com"]
["Skole/hold (14)","Navn","Point","x"]
["Skjoldborgsvejens Skole - 5c - 1","Wesal Jamal",186,1]
["Fredericia Skytteforening","Frederikke Nielsen",195,5]
["DGI Sydøstjylland","Ian Varst",186,1]
["Aksel Ebbesen","Alexander Dueholm",188,0]
["formand@fredericia-skytteforening.dk"]
["Skole/hold (15)","Navn","Point","x"]
["Ejstrupholm Skole - 5 - 1","Daniyil Grekov",185,2]
["Ejstrupholm Jagt- & Skytteforening","Dicte Jørgensen",191,3]
["DGI Sydøstjylland","Maria Eriksen",190,2]
["Andreas Adeler","Mattilde Skærlund",190,3]
["andreas@adeler.no"]
["Skole/hold (16)","Navn","Point","x"]
["Spangsbergskole - 5a - 1","Sofie Tanggaard Schütt",197,6]
["Esbjerg Skyttekreds","Sofine E. G. D. Sejr",185,1]
["DGI Sydvest","Anne Kathrine Knak",189,2]
["Poul Jørgensen","Emil Keller",184,0]
[]
["Skole/hold (17)","Navn","Point","x"]
["Nordenskov Skole - 5a - 1","Danija Broka",196,6]
["Helle Skytteforening","Pernille M. Laustrup",190,1]
["DGI Sydvest","Leonora H. Lorenzen",193,5]
["Ingrid Hauge","Mie B. Schmidt",189,2]
["inhe@bbsyd.dk"]
["Skole/hold (18)","Navn","Point","x"]
["Holmeå - 5a - 1","Daniel M. L. Nielsen",199,7]
["Brørup Skyttekreds","Thea M. Nielsen",194,5]
["DGI Sydvest","Mathias M. Mikkelsen",186,4]
["Ejgil Thuesen","Oliver U. V. Østergaard",187,1]
["elua_ejgil.thuesen@bbsyd.dk"]
["Skole/hold (19)","Navn","Point","x"]
["Skærbæk Distriks Skole - 5a - 1","Maja Olesen",189,2]
["Sparta","Silje Mehlsen",188,3]
["DGI Sønderjylland","Søren Hedegaard",190,2]
["Anders Friis","Rasmus Rode",192,4]
["amafriis@hotmail.com"]
["Skole/hold (20)","Navn","Point","x"]
["Broager Skole - 5b - 1","Caroline Sørensen",177,1]
["Broager Skytteforening","Hans N. Tychsen",188,4]
["DGI Sønderjylland","Anne Fangel Cordes",189,0]
["Jørn Christensen","Precious Janna Uddin",192,4]
["majochr@gmail.com"]
["Skole/hold (21)","Navn","Point","x"]
["Brenderup & Omegn Realskole - 5a - 1","Simon A. Hvergel",194,6]
["Fj. Harndrup Skytteforening","Amalie K. Lebæk",194,2]
["DGI Fyn","Gerda M. S. Ladekjær",192,3]
["Per Christiansen","Victoria H. Christensen",192,4]
["per.chr.var23.bre@post.tele.dk"]
["Skole/hold (22)","Navn","Point","x"]
["Sletten Skole afd. Otterup - 5a - 1","Thor Hansen",193,2]
["Otterup Skytteforening","Kristian Henningsen",193,6]
["DGI Fyn","Sofie Damsgaard Vogt",190,4]
["Hans Ole Povelsen","Rasmus Hansen",182,1]
["povlsen@webspeed.dk"]
["Skole/hold (23)","Navn","Point","x"]
["Sletten Skole afd. Nordvest","Nanna Petersen",194,6]
["Otterup Skytteforening","Nicklas Bach",190,1]
["DGI Fyn","Lærke Holm Juhl",188,3]
["Hans Ole Povelsen","Julie Tolderlund",188,2]
["povlsen@webspeed.dk"]
["Skole/hold (24)","Navn","Point","x"]
["Susålandets Skole afd. Glumsø - 5a - 1","Jessica Christiansen",194,6]
["Glumsøegnens Skytteforening","Aleyna Arslan",192,4]
["DGI Midt- & Vestsjælland","Phoebe Petersen",191,1]
["Preben Hansen","Cecilie Buchvardt",191,3]
[]
["Skole/hold (25)","Navn","Point","x"]
["Jyllinge Skole - 5c - 1","Jamie Salee-Vangaa",192,4]
["Gundsølille SG&I","Merle M. S. Sonnenborg",194,4]
["DGI Midt- & Vestsjælland","Vicki H. Dipo",196,4]
["Jens Kr. Andreasen","Jessica Sørensen",190,5]
["jens@skyttegraven.dk"]
["Skole/hold (26)","Navn","Point","x"]
["Baggesen Skole - 5C - 1","Anders Brogaard",187,3]
["Korsør Skytteforening","Sascha U. Bross",200,6]
["DGI Midt- & Vestsjælland","Mikkel Ø. Hansen",190,5]
["Erik Benée Petersen","Villads A. Thomsen",193,1]
["erikbenee@post.tele.dk"]
["Skole/hold (27)","Navn","Point","x"]
["Sigerslevøster Privatskole - 5a - 2","Isak Mirza",190,3]
["Strø S&G","Laura Thingmand",190,5]
["DGI Nordsjælland","Johannes Nyengaard",178,1]
["Andreas Gradischnig","Mikkel Rasmussen",180,2]
["a-gredischnig@hotmail.com"]
["Skole/hold (28)","Navn","Point","x"]
["Sigerslevøster Privatskole - 5a - 1","Nicoline Risgaard",188,0]
["Strø S&G","Sander Oliver Petersen",184,2]
["DGI Nordsjælland","Regitze Dylmann",184,1]
["Andreas Gradischnig","Emil Bek Jensen",183,2]
["a-gredischnig@hotmail.com"]
["Skole/hold (29)","Navn","Point","x"]
["Skole - klasse - hold","Elev 1",-1]
["Forening","Elev 2"]
["DGI Storkøbenhavn","Elev 3"]
["Kontaktperson","Elev 4"]
["email"]
["Skole/hold (30)","Navn","Point","x"]
["Skole - klasse - hold","Elev 1",-2]
["Forening","Elev 2"]
["DGI Storkøbenhavn","Elev 3"]
["Kontaktperson","Elev 4"]
["email"]
["Skole/hold (31)","Navn","Point","x"]
["Møn Friskole - 5a - 1","Frederikke Andersen",190,3]
["Damsholte Skytteforening","Jasmin Burghoff",182,1]
["DGI Storstrømmen","Silas Petersen",184,1]
["Claus Frederiksen","Selin Yandim",193,7]
["cfmp@paradis.dk"]
["Skole/hold (32)","Navn","Point","x"]
["Møn Skole Hjertebjerg - 5a - 1","Ida Kristiansen",192,4]
["Stege Ndr. Skytteforening","Theis Lindegaard",187,1]
["DGI Storstrømmen","Nickolai Thaulov",186,3]
["Lars Andersen","Magnus Jensen",188,4]
["stegenordre@live.dk"]
["Skole/hold (33)","Navn","Point","x"]
["Hans Rømer Skole afd. Aaker - 5b - 1","Victoria Höy",193,3]
["Åkirkeby Skytteforening","Maja Kock-Jensen",188,4]
["DGI Bornholm","Nana Strand",194,8]
["Erik Ager hoey","Mathilde Nielsen",186,3]
["skydningbornholm@mail.dk"]
["Skole/hold (34)","Navn","Point","x"]
["Svaneke Friskole - 5a - 1","Jenesa Thapa",182,3]
["Svaneke Skytteforening","Ellen E. Ibsen",187,1]
["DGI Bornholm","Aja B. B. Ryan",183,2]
["Peter Kofoed-Dam","Oskar Thyme-Duvald",197,3]
["pkd@svanegaard.com"]

{"sheet":"test","index":46,"n_rows":1,"n_cols":1,"rows_kept":1,"cut":false,"hidden":false,"merged":[]}
[{"$f":"'Indtast resultat'!B15&\", \"&'Indtast resultat'!A15&\", \"&'Indtast resultat'!A16","v":"Isabella Juhler, Nordals Skolen 5B-1, Nordals Skyttekreds"}]